{"text_format":"1","workbook":"xlsx","n_sheets":5,"sheets":["Data","Register_deltag_organisationer","Deltagarförteckning","Intyg för närvarotid","Instruktion"],"not_rendered":{"charts":0,"images":1,"macros":1,"external_links":0,"defined_names":8,"comments":1,"pivot_tables":0},"unopened":[],"bounds":{"document_bytes":16777216,"sheet_cells":100000,"rows_first":2000,"rows_last":500,"rows_between":2000,"halvings":0,"cell_chars":16384,"cell_head_chars":4096},"cells_cut":0,"cells_raw":0,"read":"whole","date_system":"1900"}

{"sheet":"Data","index":0,"n_rows":21,"n_cols":11,"rows_kept":21,"cut":false,"hidden":true,"merged":[]}
["-",null,"Programområde",null,null,"-",null,"-","Privat aktör",{"$f":"SUMIF(Register_deltag_organisationer!C:C,Data!I1,Register_deltag_organisationer!D:D)","v":0}]
["Arbetsförmedlingen","Ja",1,null,null,"Januari",null,2015,"Kommun",{"$f":"SUMIF(Register_deltag_organisationer!C:C,Data!I2,Register_deltag_organisationer!D:D)","v":0}]
["Försäkringskassan","Nej",2,null,null,"Februari",null,2016,"Landstingskommunal",{"$f":"SUMIF(Register_deltag_organisationer!C:C,Data!I3,Register_deltag_organisationer!D:D)","v":0}]
["Kommun",null,null,null,null,"Mars",null,2017,"Annan statlig aktör",{"$f":"SUMIF(Register_deltag_organisationer!C:C,Data!I4,Register_deltag_organisationer!D:D)","v":0}]
["Annan",null,null,null,null,"April",null,2018,"Övrig offentlig icke statlig aktör",{"$f":"SUMIF(Register_deltag_organisationer!C:C,Data!I5,Register_deltag_organisationer!D:D)","v":0}]
[null,null,null,null,null,"Maj",null,2019,"Arbetsförmedlingen",{"$f":"SUMIF(Register_deltag_organisationer!C:C,Data!I6,Register_deltag_organisationer!D:D)","v":0}]
[null,null,null,null,null,"Juni",null,2020,"Försäkringskassan",{"$f":"SUMIF(Register_deltag_organisationer!C:C,Data!I7,Register_deltag_organisationer!D:D)","v":0}]
[null,null,null,null,null,"Juli",null,2021,"Totalt",{"$f":"SUM(J1:J7)","v":0}]
[null,null,null,null,null,"Augusti",null,2022,"Enligt mall",{"$f":"Deltagarförteckning!H41","v":0}]
[null,null,null,null,null,"September",null,2023,"Stämmer",{"$f":"J8-J9","v":0},"Denna cell ska kontrolleras"]
[null,null,null,null,null,"Oktober"]
[null,null,null,null,null,"November"]
[null,null,null,null,null,"December"]
[]
[{"$f":"IF(SUM(#REF!)>0,\"1\",\"\")","v":{"$error":"#REF!"}}]
[]
[null,null,null,null,null,"Sista rad",40]
[]
[null,null,null,"dag",15]
[null,null,null,"månad",{"$f":"MONTH(DATEVALUE(Deltagarförteckning!H3&\"1\"))","v":{"$error":"#VALUE!"}}]
[null,null,null,"datum",{"$f":"DATE(Deltagarförteckning!H4,Data!E20,Data!E19)","v":{"$error":"#VALUE!"}}]

{"sheet":"Register_deltag_organisationer","index":1,"n_rows":526,"n_cols":4,"rows_kept":526,"cut":false,"hidden":false,"merged":[[2,0,2,2]]}
["Diarienummer",{"$f":"Deltagarförteckning!B3","v":0}]
["Projektnamn",{"$f":"Deltagarförteckning!B4","v":0}]
["Register över organisationer som kompetensutvecklar sin personal genom socialfondsprojekt, inom programområde 1 (PO1) - Kompetensförsörjning. \nTiden i aktiviteter/kompetensutveckling räknas som medfinansiering i projektet."]
["Organisationsnamn","Organisationsnummer","Typ av organisation","Antal timmar"]
[]
[null,null,null,{"$f":"SUMIF(Deltagarförteckning!F:F,Register_deltag_organisationer!A6,Deltagarförteckning!H:H)","v":0}]
[null,null,null,{"$f":"SUMIF(Deltagarförteckning!F:F,Register_deltag_organisationer!A7,Deltagarförteckning!H:H)","v":0}]
[null,null,null,{"$f":"SUMIF(Deltagarförteckning!F:F,Register_deltag_organisationer!A8,Deltagarförteckning!H:H)","v":0}]
[null,null,null,{"$f":"SUMIF(Deltagarförteckning!F:F,Register_deltag_organisationer!A9,Deltagarförteckning!H:H)","v":0}]
[null,null,null,{"$f":"SUMIF(Deltagarförteckning!F:F,Register_deltag_organisationer!A10,Deltagarförteckning!H:H)","v":0}]
[null,null,null,{"$f":"SUMIF(Deltagarförteckning!F:F,Register_deltag_organisationer!A11,Deltagarförteckning!H:H)","v":0}]
[null,null,null,{"$f":"SUMIF(Deltagarförteckning!F:F,Register_deltag_organisationer!A12,Deltagarförteckning!H:H)","v":0}]
[null,null,null,{"$f":"SUMIF(Deltagarförteckning!F:F,Register_deltag_organisationer!A13,Deltagarförteckning!H:H)","v":0}]
[null,null,null,{"$f":"SUMIF(Deltagarförteckning!F:F,Register_deltag_organisationer!A14,Deltagarförteckning!H:H)","v":0}]
[null,null,null,{"$f":"SUMIF(Deltagarförteckning!F:F,Register_deltag_organisationer!A15,Deltagarförteckning!H:H)","v":0}]
[null,null,null,{"$f":"SUMIF(Deltagarförteckning!F:F,Register_deltag_organisationer!A16,Deltagarförteckning!H:H)","v":0}]
[null,null,null,{"$f":"SUMIF(Deltagarförteckning!F:F,Register_deltag_organisationer!A17,Deltagarförteckning!H:H)","v":0}]
[null,null,null,{"$f":"SUMIF(Deltagarförteckning!F:F,Register_deltag_organisationer!A18,Deltagarförteckning!H:H)","v":0}]
[null,null,null,{"$f":"SUMIF(Deltagarförteckning!F:F,Register_deltag_organisationer!A19,Deltagarförteckning!H:H)","v":0}]
[null,null,null,{"$f":"SUMIF(Deltagarförteckning!F:F,Register_deltag_organisationer!A20,Deltagarförteckning!H:H)","v":0}]
[null,null,null,{"$f":"SUMIF(Deltagarförteckning!F:F,Register_deltag_organisationer!A21,Deltagarförteckning!H:H)","v":0}]
[null,null,null,{"$f":"SUMIF(Deltagarförteckning!F:F,Register_deltag_organisationer!A22,Deltagarförteckning!H:H)","v":0}]
[null,null,null,{"$f":"SUMIF(Deltagarförteckning!F:F,Register_deltag_organisationer!A23,Deltagarförteckning!H:H)","v":0}]
[null,null,null,{"$f":"SUMIF(Deltagarförteckning!F:F,Register_deltag_organisationer!A24,Deltagarförteckning!H:H)","v":0}]
[null,null,null,{"$f":"SUMIF(Deltagarförteckning!F:F,Register_deltag_organisationer!A25,Deltagarförteckning!H:H)","v":0}]
[null,null,null,{"$f":"SUMIF(Deltagarförteckning!F:F,Register_deltag_organisationer!A26,Deltagarförteckning!H:H)","v":0}]
[null,null,null,{"$f":"SUMIF(Deltagarförteckning!F:F,Register_deltag_organisationer!A27,Deltagarförteckning!H:H)","v":0}]
[null,null,null,{"$f":"SUMIF(Deltagarförteckning!F:F,Register_deltag_organisationer!A28,Deltagarförteckning!H:H)","v":0}]
[null,null,null,{"$f":"SUMIF(Deltagarförteckning!F:F,Register_deltag_organisationer!A29,Deltagarförteckning!H:H)","v":0}]
[null,null,null,{"$f":"SUMIF(Deltagarförteckning!F:F,Register_deltag_organisationer!A30,Deltagarförteckning!H:H)","v":0}]
[null,null,null,{"$f":"SUMIF(Deltagarförteckning!F:F,Register_deltag_organisationer!A31,Deltagarförteckning!H:H)","v":0}]
[null,null,null,{"$f":"SUMIF(Deltagarförteckning!F:F,Register_deltag_organisationer!A32,Deltagarförteckning!H:H)","v":0}]
[null,null,null,{"$f":"SUMIF(Deltagarförteckning!F:F,Register_deltag_organisationer!A33,Deltagarförteckning!H:H)","v":0}]
[null,null,null,{"$f":"SUMIF(Deltagarförteckning!F:F,Register_deltag_organisationer!A34,Deltagarförteckning!H:H)","v":0}]
[null,null,null,{"$f":"SUMIF(Deltagarförteckning!F:F,Register_deltag_organisationer!A35,Deltagarförteckning!H:H)","v":0}]
[null,null,null,{"$f":"SUMIF(Deltagarförteckning!F:F,Register_deltag_organisationer!A36,Deltagarförteckning!H:H)","v":0}]
[null,null,null,{"$f":"SUMIF(Deltagarförteckning!F:F,Register_deltag_organisationer!A37,Deltagarförteckning!H:H)","v":0}]
[null,null,null,{"$f":"SUMIF(Deltagarförteckning!F:F,Register_deltag_organisationer!A38,Deltagarförteckning!H:H)","v":0}]
[null,null,null,{"$f":"SUMIF(Deltagarförteckning!F:F,Register_deltag_organisationer!A39,Deltagarförteckning!H:H)","v":0}]
[null,null,null,{"$f":"SUMIF(Deltagarförteckning!F:F,Register_deltag_organisationer!A40,Deltagarförteckning!H:H)","v":0}]
[null,null,null,{"$f":"SUMIF(Deltagarförteckning!F:F,Register_deltag_organisationer!A41,Deltagarförteckning!H:H)","v":0}]
[null,null,null,{"$f":"SUMIF(Deltagarförteckning!F:F,Register_deltag_organisationer!A42,Deltagarförteckning!H:H)","v":0}]
[null,null,null,{"$f":"SUMIF(Deltagarförteckning!F:F,Register_deltag_organisationer!A43,Deltagarförteckning!H:H)","v":0}]
[null,null,null,{"$f":"SUMIF(Deltagarförteckning!F:F,Register_deltag_organisationer!A44,Deltagarförteckning!H:H)","v":0}]
[null,null,null,{"$f":"SUMIF(Deltagarförteckning!F:F,Register_deltag_organisationer!A45,Deltagarförteckning!H:H)","v":0}]
[null,null,null,{"$f":"SUMIF(Deltagarförteckning!F:F,Register_deltag_organisationer!A46,Deltagarförteckning!H:H)","v":0}]
[null,null,null,{"$f":"SUMIF(Deltagarförteckning!F:F,Register_deltag_organisationer!A47,Deltagarförteckning!H:H)","v":0}]
[null,null,null,{"$f":"SUMIF(Deltagarförteckning!F:F,Register_deltag_organisationer!A48,Deltagarförteckning!H:H)","v":0}]
[null,null,null,{"$f":"SUMIF(Deltagarförteckning!F:F,Register_deltag_organisationer!A49,Deltagarförteckning!H:H)","v":0}]
[null,null,null,{"$f":"SUMIF(Deltagarförteckning!F:F,Register_deltag_organisationer!A50,Deltagarförteckning!H:H)","v":0}]
[null,null,null,{"$f":"SUMIF(Deltagarförteckning!F:F,Register_deltag_organisationer!A51,Deltagarförteckning!H:H)","v":0}]
[null,null,null,{"$f":"SUMIF(Deltagarförteckning!F:F,Register_deltag_organisationer!A52,Deltagarförteckning!H:H)","v":0}]
[null,null,null,{"$f":"SUMIF(Deltagarförteckning!F:F,Register_deltag_organisationer!A53,Deltagarförteckning!H:H)","v":0}]
[null,null,null,{"$f":"SUMIF(Deltagarförteckning!F:F,Register_deltag_organisationer!A54,Deltagarförteckning!H:H)","v":0}]
[null,null,null,{"$f":"SUMIF(Deltagarförteckning!F:F,Register_deltag_organisationer!A55,Deltagarförteckning!H:H)","v":0}]
[null,null,null,{"$f":"SUMIF(Deltagarförteckning!F:F,Register_deltag_organisationer!A56,Deltagarförteckning!H:H)","v":0}]
[null,null,null,{"$f":"SUMIF(Deltagarförteckning!F:F,Register_deltag_organisationer!A57,Deltagarförteckning!H:H)","v":0}]
[null,null,null,{"$f":"SUMIF(Deltagarförteckning!F:F,Register_deltag_organisationer!A58,Deltagarförteckning!H:H)","v":0}]
[null,null,null,{"$f":"SUMIF(Deltagarförteckning!F:F,Register_deltag_organisationer!A59,Deltagarförteckning!H:H)","v":0}]
[null,null,null,{"$f":"SUMIF(Deltagarförteckning!F:F,Register_deltag_organisationer!A60,Deltagarförteckning!H:H)","v":0}]
[null,null,null,{"$f":"SUMIF(Deltagarförteckning!F:F,Register_deltag_organisationer!A61,Deltagarförteckning!H:H)","v":0}]
[null,null,null,{"$f":"SUMIF(Deltagarförteckning!F:F,Register_deltag_organisationer!A62,Deltagarförteckning!H:H)","v":0}]
[null,null,null,{"$f":"SUMIF(Deltagarförteckning!F:F,Register_deltag_organisationer!A63,Deltagarförteckning!H:H)","v":0}]
[null,null,null,{"$f":"SUMIF(Deltagarförteckning!F:F,Register_deltag_organisationer!A64,Deltagarförteckning!H:H)","v":0}]
[null,null,null,{"$f":"SUMIF(Deltagarförteckning!F:F,Register_deltag_organisationer!A65,Deltagarförteckning!H:H)","v":0}]
[null,null,null,{"$f":"SUMIF(Deltagarförteckning!F:F,Register_deltag_organisationer!A66,Deltagarförteckning!H:H)","v":0}]
[null,null,null,{"$f":"SUMIF(Deltagarförteckning!F:F,Register_deltag_organisationer!A67,Deltagarförteckning!H:H)","v":0}]
[null,null,null,{"$f":"SUMIF(Deltagarförteckning!F:F,Register_deltag_organisationer!A68,Deltagarförteckning!H:H)","v":0}]
[null,null,null,{"$f":"SUMIF(Deltagarförteckning!F:F,Register_deltag_organisationer!A69,Deltagarförteckning!H:H)","v":0}]
[null,null,null,{"$f":"SUMIF(Deltagarförteckning!F:F,Register_deltag_organisationer!A70,Deltagarförteckning!H:H)","v":0}]
[null,null,null,{"$f":"SUMIF(Deltagarförteckning!F:F,Register_deltag_organisationer!A71,Deltagarförteckning!H:H)","v":0}]
[null,null,null,{"$f":"SUMIF(Deltagarförteckning!F:F,Register_deltag_organisationer!A72,Deltagarförteckning!H:H)","v":0}]
[null,null,null,{"$f":"SUMIF(Deltagarförteckning!F:F,Register_deltag_organisationer!A73,Deltagarförteckning!H:H)","v":0}]
[null,null,null,{"$f":"SUMIF(Deltagarförteckning!F:F,Register_deltag_organisationer!A74,Deltagarförteckning!H:H)","v":0}]
[null,null,null,{"$f":"SUMIF(Deltagarförteckning!F:F,Register_deltag_organisationer!A75,Deltagarförteckning!H:H)","v":0}]
[null,null,null,{"$f":"SUMIF(Deltagarförteckning!F:F,Register_deltag_organisationer!A76,Deltagarförteckning!H:H)","v":0}]
[null,null,null,{"$f":"SUMIF(Deltagarförteckning!F:F,Register_deltag_organisationer!A77,Deltagarförteckning!H:H)","v":0}]
[null,null,null,{"$f":"SUMIF(Deltagarförteckning!F:F,Register_deltag_organisationer!A78,Deltagarförteckning!H:H)","v":0}]
[null,null,null,{"$f":"SUMIF(Deltagarförteckning!F:F,Register_deltag_organisationer!A79,Deltagarförteckning!H:H)","v":0}]
[null,null,null,{"$f":"SUMIF(Deltagarförteckning!F:F,Register_deltag_organisationer!A80,Deltagarförteckning!H:H)","v":0}]
[null,null,null,{"$f":"SUMIF(Deltagarförteckning!F:F,Register_deltag_organisationer!A81,Deltagarförteckning!H:H)","v":0}]
[null,null,null,{"$f":"SUMIF(Deltagarförteckning!F:F,Register_deltag_organisationer!A82,Deltagarförteckning!H:H)","v":0}]
[null,null,null,{"$f":"SUMIF(Deltagarförteckning!F:F,Register_deltag_organisationer!A83,Deltagarförteckning!H:H)","v":0}]
[null,null,null,{"$f":"SUMIF(Deltagarförteckning!F:F,Register_deltag_organisationer!A84,Deltagarförteckning!H:H)","v":0}]
[null,null,null,{"$f":"SUMIF(Deltagarförteckning!F:F,Register_deltag_organisationer!A85,Deltagarförteckning!H:H)","v":0}]
[null,null,null,{"$f":"SUMIF(Deltagarförteckning!F:F,Register_deltag_organisationer!A86,Deltagarförteckning!H:H)","v":0}]
[null,null,null,{"$f":"SUMIF(Deltagarförteckning!F:F,Register_deltag_organisationer!A87,Deltagarförteckning!H:H)","v":0}]
[null,null,null,{"$f":"SUMIF(Deltagarförteckning!F:F,Register_deltag_organisationer!A88,Deltagarförteckning!H:H)","v":0}]
[null,null,null,{"$f":"SUMIF(Deltagarförteckning!F:F,Register_deltag_organisationer!A89,Deltagarförteckning!H:H)","v":0}]
[null,null,null,{"$f":"SUMIF(Deltagarförteckning!F:F,Register_deltag_organisationer!A90,Deltagarförteckning!H:H)","v":0}]
[null,null,null,{"$f":"SUMIF(Deltagarförteckning!F:F,Register_deltag_organisationer!A91,Deltagarförteckning!H:H)","v":0}]
[null,null,null,{"$f":"SUMIF(Deltagarförteckning!F:F,Register_deltag_organisationer!A92,Deltagarförteckning!H:H)","v":0}]
[null,null,null,{"$f":"SUMIF(Deltagarförteckning!F:F,Register_deltag_organisationer!A93,Deltagarförteckning!H:H)","v":0}]
[null,null,null,{"$f":"SUMIF(Deltagarförteckning!F:F,Register_deltag_organisationer!A94,Deltagarförteckning!H:H)","v":0}]
[null,null,null,{"$f":"SUMIF(Deltagarförteckning!F:F,Register_deltag_organisationer!A95,Deltagarförteckning!H:H)","v":0}]
[null,null,null,{"$f":"SUMIF(Deltagarförteckning!F:F,Register_deltag_organisationer!A96,Deltagarförteckning!H:H)","v":0}]
[null,null,null,{"$f":"SUMIF(Deltagarförteckning!F:F,Register_deltag_organisationer!A97,Deltagarförteckning!H:H)","v":0}]
[null,null,null,{"$f":"SUMIF(Deltagarförteckning!F:F,Register_deltag_organisationer!A98,Deltagarförteckning!H:H)","v":0}]
[null,null,null,{"$f":"SUMIF(Deltagarförteckning!F:F,Register_deltag_organisationer!A99,Deltagarförteckning!H:H)","v":0}]
[null,null,null,{"$f":"SUMIF(Deltagarförteckning!F:F,Register_deltag_organisationer!A100,Deltagarförteckning!H:H)","v":0}]
[null,null,null,{"$f":"SUMIF(Deltagarförteckning!F:F,Register_deltag_organisationer!A101,Deltagarförteckning!H:H)","v":0}]
[null,null,null,{"$f":"SUMIF(Deltagarförteckning!F:F,Register_deltag_organisationer!A102,Deltagarförteckning!H:H)","v":0}]
[null,null,null,{"$f":"SUMIF(Deltagarförteckning!F:F,Register_deltag_organisationer!A103,Deltagarförteckning!H:H)","v":0}]
[null,null,null,{"$f":"SUMIF(Deltagarförteckning!F:F,Register_deltag_organisationer!A104,Deltagarförteckning!H:H)","v":0}]
[null,null,null,{"$f":"SUMIF(Deltagarförteckning!F:F,Register_deltag_organisationer!A105,Deltagarförteckning!H:H)","v":0}]
[null,null,null,{"$f":"SUMIF(Deltagarförteckning!F:F,Register_deltag_organisationer!A106,Deltagarförteckning!H:H)","v":0}]
[null,null,null,{"$f":"SUMIF(Deltagarförteckning!F:F,Register_deltag_organisationer!A107,Deltagarförteckning!H:H)","v":0}]
[null,null,null,{"$f":"SUMIF(Deltagarförteckning!F:F,Register_deltag_organisationer!A108,Deltagarförteckning!H:H)","v":0}]
[null,null,null,{"$f":"SUMIF(Deltagarförteckning!F:F,Register_deltag_organisationer!A109,Deltagarförteckning!H:H)","v":0}]
[null,null,null,{"$f":"SUMIF(Deltagarförteckning!F:F,Register_deltag_organisationer!A110,Deltagarförteckning!H:H)","v":0}]
[null,null,null,{"$f":"SUMIF(Deltagarförteckning!F:F,Register_deltag_organisationer!A111,Deltagarförteckning!H:H)","v":0}]
[null,null,null,{"$f":"SUMIF(Deltagarförteckning!F:F,Register_deltag_organisationer!A112,Deltagarförteckning!H:H)","v":0}]
[null,null,null,{"$f":"SUMIF(Deltagarförteckning!F:F,Register_deltag_organisationer!A113,Deltagarförteckning!H:H)","v":0}]
[null,null,null,{"$f":"SUMIF(Deltagarförteckning!F:F,Register_deltag_organisationer!A114,Deltagarförteckning!H:H)","v":0}]
[null,null,null,{"$f":"SUMIF(Deltagarförteckning!F:F,Register_deltag_organisationer!A115,Deltagarförteckning!H:H)","v":0}]
[null,null,null,{"$f":"SUMIF(Deltagarförteckning!F:F,Register_deltag_organisationer!A116,Deltagarförteckning!H:H)","v":0}]
[null,null,null,{"$f":"SUMIF(Deltagarförteckning!F:F,Register_deltag_organisationer!A117,Deltagarförteckning!H:H)","v":0}]
[null,null,null,{"$f":"SUMIF(Deltagarförteckning!F:F,Register_deltag_organisationer!A118,Deltagarförteckning!H:H)","v":0}]
[null,null,null,{"$f":"SUMIF(Deltagarförteckning!F:F,Register_deltag_organisationer!A119,Deltagarförteckning!H:H)","v":0}]
[null,null,null,{"$f":"SUMIF(Deltagarförteckning!F:F,Register_deltag_organisationer!A120,Deltagarförteckning!H:H)","v":0}]
[null,null,null,{"$f":"SUMIF(Deltagarförteckning!F:F,Register_deltag_organisationer!A121,Deltagarförteckning!H:H)","v":0}]
[null,null,null,{"$f":"SUMIF(Deltagarförteckning!F:F,Register_deltag_organisationer!A122,Deltagarförteckning!H:H)","v":0}]
[null,null,null,{"$f":"SUMIF(Deltagarförteckning!F:F,Register_deltag_organisationer!A123,Deltagarförteckning!H:H)","v":0}]
[null,null,null,{"$f":"SUMIF(Deltagarförteckning!F:F,Register_deltag_organisationer!A124,Deltagarförteckning!H:H)","v":0}]
[null,null,null,{"$f":"SUMIF(Deltagarförteckning!F:F,Register_deltag_organisationer!A125,Deltagarförteckning!H:H)","v":0}]
[null,null,null,{"$f":"SUMIF(Deltagarförteckning!F:F,Register_deltag_organisationer!A126,Deltagarförteckning!H:H)","v":0}]
[null,null,null,{"$f":"SUMIF(Deltagarförteckning!F:F,Register_deltag_organisationer!A127,Deltagarförteckning!H:H)","v":0}]
[null,null,null,{"$f":"SUMIF(Deltagarförteckning!F:F,Register_deltag_organisationer!A128,Deltagarförteckning!H:H)","v":0}]
[null,null,null,{"$f":"SUMIF(Deltagarförteckning!F:F,Register_deltag_organisationer!A129,Deltagarförteckning!H:H)","v":0}]
[null,null,null,{"$f":"SUMIF(Deltagarförteckning!F:F,Register_deltag_organisationer!A130,Deltagarförteckning!H:H)","v":0}]
[null,null,null,{"$f":"SUMIF(Deltagarförteckning!F:F,Register_deltag_organisationer!A131,Deltagarförteckning!H:H)","v":0}]
[null,null,null,{"$f":"SUMIF(Deltagarförteckning!F:F,Register_deltag_organisationer!A132,Deltagarförteckning!H:H)","v":0}]
[null,null,null,{"$f":"SUMIF(Deltagarförteckning!F:F,Register_deltag_organisationer!A133,Deltagarförteckning!H:H)","v":0}]
[null,null,null,{"$f":"SUMIF(Deltagarförteckning!F:F,Register_deltag_organisationer!A134,Deltagarförteckning!H:H)","v":0}]
[null,null,null,{"$f":"SUMIF(Deltagarförteckning!F:F,Register_deltag_organisationer!A135,Deltagarförteckning!H:H)","v":0}]
[null,null,null,{"$f":"SUMIF(Deltagarförteckning!F:F,Register_deltag_organisationer!A136,Deltagarförteckning!H:H)","v":0}]
[null,null,null,{"$f":"SUMIF(Deltagarförteckning!F:F,Register_deltag_organisationer!A137,Deltagarförteckning!H:H)","v":0}]
[null,null,null,{"$f":"SUMIF(Deltagarförteckning!F:F,Register_deltag_organisationer!A138,Deltagarförteckning!H:H)","v":0}]
[null,null,null,{"$f":"SUMIF(Deltagarförteckning!F:F,Register_deltag_organisationer!A139,Deltagarförteckning!H:H)","v":0}]
[null,null,null,{"$f":"SUMIF(Deltagarförteckning!F:F,Register_deltag_organisationer!A140,Deltagarförteckning!H:H)","v":0}]
[null,null,null,{"$f":"SUMIF(Deltagarförteckning!F:F,Register_deltag_organisationer!A141,Deltagarförteckning!H:H)","v":0}]
[null,null,null,{"$f":"SUMIF(Deltagarförteckning!F:F,Register_deltag_organisationer!A142,Deltagarförteckning!H:H)","v":0}]
[null,null,null,{"$f":"SUMIF(Deltagarförteckning!F:F,Register_deltag_organisationer!A143,Deltagarförteckning!H:H)","v":0}]
[null,null,null,{"$f":"SUMIF(Deltagarförteckning!F:F,Register_deltag_organisationer!A144,Deltagarförteckning!H:H)","v":0}]
[null,null,null,{"$f":"SUMIF(Deltagarförteckning!F:F,Register_deltag_organisationer!A145,Deltagarförteckning!H:H)","v":0}]
[null,null,null,{"$f":"SUMIF(Deltagarförteckning!F:F,Register_deltag_organisationer!A146,Deltagarförteckning!H:H)","v":0}]
[null,null,null,{"$f":"SUMIF(Deltagarförteckning!F:F,Register_deltag_organisationer!A147,Deltagarförteckning!H:H)","v":0}]
[null,null,null,{"$f":"SUMIF(Deltagarförteckning!F:F,Register_deltag_organisationer!A148,Deltagarförteckning!H:H)","v":0}]
[null,null,null,{"$f":"SUMIF(Deltagarförteckning!F:F,Register_deltag_organisationer!A149,Deltagarförteckning!H:H)","v":0}]
[null,null,null,{"$f":"SUMIF(Deltagarförteckning!F:F,Register_deltag_organisationer!A150,Deltagarförteckning!H:H)","v":0}]
[null,null,null,{"$f":"SUMIF(Deltagarförteckning!F:F,Register_deltag_organisationer!A151,Deltagarförteckning!H:H)","v":0}]
[null,null,null,{"$f":"SUMIF(Deltagarförteckning!F:F,Register_deltag_organisationer!A152,Deltagarförteckning!H:H)","v":0}]
[null,null,null,{"$f":"SUMIF(Deltagarförteckning!F:F,Register_deltag_organisationer!A153,Deltagarförteckning!H:H)","v":0}]
[null,null,null,{"$f":"SUMIF(Deltagarförteckning!F:F,Register_deltag_organisationer!A154,Deltagarförteckning!H:H)","v":0}]
[null,null,null,{"$f":"SUMIF(Deltagarförteckning!F:F,Register_deltag_organisationer!A155,Deltagarförteckning!H:H)","v":0}]
[null,null,null,{"$f":"SUMIF(Deltagarförteckning!F:F,Register_deltag_organisationer!A156,Deltagarförteckning!H:H)","v":0}]
[null,null,null,{"$f":"SUMIF(Deltagarförteckning!F:F,Register_deltag_organisationer!A157,Deltagarförteckning!H:H)","v":0}]
[null,null,null,{"$f":"SUMIF(Deltagarförteckning!F:F,Register_deltag_organisationer!A158,Deltagarförteckning!H:H)","v":0}]
[null,null,null,{"$f":"SUMIF(Deltagarförteckning!F:F,Register_deltag_organisationer!A159,Deltagarförteckning!H:H)","v":0}]
[null,null,null,{"$f":"SUMIF(Deltagarförteckning!F:F,Register_deltag_organisationer!A160,Deltagarförteckning!H:H)","v":0}]
[null,null,null,{"$f":"SUMIF(Deltagarförteckning!F:F,Register_deltag_organisationer!A161,Deltagarförteckning!H:H)","v":0}]
[null,null,null,{"$f":"SUMIF(Deltagarförteckning!F:F,Register_deltag_organisationer!A162,Deltagarförteckning!H:H)","v":0}]
[null,null,null,{"$f":"SUMIF(Deltagarförteckning!F:F,Register_deltag_organisationer!A163,Deltagarförteckning!H:H)","v":0}]
[null,null,null,{"$f":"SUMIF(Deltagarförteckning!F:F,Register_deltag_organisationer!A164,Deltagarförteckning!H:H)","v":0}]
[null,null,null,{"$f":"SUMIF(Deltagarförteckning!F:F,Register_deltag_organisationer!A165,Deltagarförteckning!H:H)","v":0}]
[null,null,null,{"$f":"SUMIF(Deltagarförteckning!F:F,Register_deltag_organisationer!A166,Deltagarförteckning!H:H)","v":0}]
[null,null,null,{"$f":"SUMIF(Deltagarförteckning!F:F,Register_deltag_organisationer!A167,Deltagarförteckning!H:H)","v":0}]
[null,null,null,{"$f":"SUMIF(Deltagarförteckning!F:F,Register_deltag_organisationer!A168,Deltagarförteckning!H:H)","v":0}]
[null,null,null,{"$f":"SUMIF(Deltagarförteckning!F:F,Register_deltag_organisationer!A169,Deltagarförteckning!H:H)","v":0}]
[null,null,null,{"$f":"SUMIF(Deltagarförteckning!F:F,Register_deltag_organisationer!A170,Deltagarförteckning!H:H)","v":0}]
[null,null,null,{"$f":"SUMIF(Deltagarförteckning!F:F,Register_deltag_organisationer!A171,Deltagarförteckning!H:H)","v":0}]
[null,null,null,{"$f":"SUMIF(Deltagarförteckning!F:F,Register_deltag_organisationer!A172,Deltagarförteckning!H:H)","v":0}]
[null,null,null,{"$f":"SUMIF(Deltagarförteckning!F:F,Register_deltag_organisationer!A173,Deltagarförteckning!H:H)","v":0}]
[null,null,null,{"$f":"SUMIF(Deltagarförteckning!F:F,Register_deltag_organisationer!A174,Deltagarförteckning!H:H)","v":0}]
[null,null,null,{"$f":"SUMIF(Deltagarförteckning!F:F,Register_deltag_organisationer!A175,Deltagarförteckning!H:H)","v":0}]
[null,null,null,{"$f":"SUMIF(Deltagarförteckning!F:F,Register_deltag_organisationer!A176,Deltagarförteckning!H:H)","v":0}]
[null,null,null,{"$f":"SUMIF(Deltagarförteckning!F:F,Register_deltag_organisationer!A177,Deltagarförteckning!H:H)","v":0}]
[null,null,null,{"$f":"SUMIF(Deltagarförteckning!F:F,Register_deltag_organisationer!A178,Deltagarförteckning!H:H)","v":0}]
[null,null,null,{"$f":"SUMIF(Deltagarförteckning!F:F,Register_deltag_organisationer!A179,Deltagarförteckning!H:H)","v":0}]
[null,null,null,{"$f":"SUMIF(Deltagarförteckning!F:F,Register_deltag_organisationer!A180,Deltagarförteckning!H:H)","v":0}]
[null,null,null,{"$f":"SUMIF(Deltagarförteckning!F:F,Register_deltag_organisationer!A181,Deltagarförteckning!H:H)","v":0}]
[null,null,null,{"$f":"SUMIF(Deltagarförteckning!F:F,Register_deltag_organisationer!A182,Deltagarförteckning!H:H)","v":0}]
[null,null,null,{"$f":"SUMIF(Deltagarförteckning!F:F,Register_deltag_organisationer!A183,Deltagarförteckning!H:H)","v":0}]
[null,null,null,{"$f":"SUMIF(Deltagarförteckning!F:F,Register_deltag_organisationer!A184,Deltagarförteckning!H:H)","v":0}]
[null,null,null,{"$f":"SUMIF(Deltagarförteckning!F:F,Register_deltag_organisationer!A185,Deltagarförteckning!H:H)","v":0}]
[null,null,null,{"$f":"SUMIF(Deltagarförteckning!F:F,Register_deltag_organisationer!A186,Deltagarförteckning!H:H)","v":0}]
[null,null,null,{"$f":"SUMIF(Deltagarförteckning!F:F,Register_deltag_organisationer!A187,Deltagarförteckning!H:H)","v":0}]
[null,null,null,{"$f":"SUMIF(Deltagarförteckning!F:F,Register_deltag_organisationer!A188,Deltagarförteckning!H:H)","v":0}]
[null,null,null,{"$f":"SUMIF(Deltagarförteckning!F:F,Register_deltag_organisationer!A189,Deltagarförteckning!H:H)","v":0}]
[null,null,null,{"$f":"SUMIF(Deltagarförteckning!F:F,Register_deltag_organisationer!A190,Deltagarförteckning!H:H)","v":0}]
[null,null,null,{"$f":"SUMIF(Deltagarförteckning!F:F,Register_deltag_organisationer!A191,Deltagarförteckning!H:H)","v":0}]
[null,null,null,{"$f":"SUMIF(Deltagarförteckning!F:F,Register_deltag_organisationer!A192,Deltagarförteckning!H:H)","v":0}]
[null,null,null,{"$f":"SUMIF(Deltagarförteckning!F:F,Register_deltag_organisationer!A193,Deltagarförteckning!H:H)","v":0}]
[null,null,null,{"$f":"SUMIF(Deltagarförteckning!F:F,Register_deltag_organisationer!A194,Deltagarförteckning!H:H)","v":0}]
[null,null,null,{"$f":"SUMIF(Deltagarförteckning!F:F,Register_deltag_organisationer!A195,Deltagarförteckning!H:H)","v":0}]
[null,null,null,{"$f":"SUMIF(Deltagarförteckning!F:F,Register_deltag_organisationer!A196,Deltagarförteckning!H:H)","v":0}]
[null,null,null,{"$f":"SUMIF(Deltagarförteckning!F:F,Register_deltag_organisationer!A197,Deltagarförteckning!H:H)","v":0}]
[null,null,null,{"$f":"SUMIF(Deltagarförteckning!F:F,Register_deltag_organisationer!A198,Deltagarförteckning!H:H)","v":0}]
[null,null,null,{"$f":"SUMIF(Deltagarförteckning!F:F,Register_deltag_organisationer!A199,Deltagarförteckning!H:H)","v":0}]
[null,null,null,{"$f":"SUMIF(Deltagarförteckning!F:F,Register_deltag_organisationer!A200,Deltagarförteckning!H:H)","v":0}]
[null,null,null,{"$f":"SUMIF(Deltagarförteckning!F:F,Register_deltag_organisationer!A201,Deltagarförteckning!H:H)","v":0}]
[null,null,null,{"$f":"SUMIF(Deltagarförteckning!F:F,Register_deltag_organisationer!A202,Deltagarförteckning!H:H)","v":0}]
[null,null,null,{"$f":"SUMIF(Deltagarförteckning!F:F,Register_deltag_organisationer!A203,Deltagarförteckning!H:H)","v":0}]
[null,null,null,{"$f":"SUMIF(Deltagarförteckning!F:F,Register_deltag_organisationer!A204,Deltagarförteckning!H:H)","v":0}]
[null,null,null,{"$f":"SUMIF(Deltagarförteckning!F:F,Register_deltag_organisationer!A205,Deltagarförteckning!H:H)","v":0}]
[null,null,null,{"$f":"SUMIF(Deltagarförteckning!F:F,Register_deltag_organisationer!A206,Deltagarförteckning!H:H)","v":0}]
[null,null,null,{"$f":"SUMIF(Deltagarförteckning!F:F,Register_deltag_organisationer!A207,Deltagarförteckning!H:H)","v":0}]
[null,null,null,{"$f":"SUMIF(Deltagarförteckning!F:F,Register_deltag_organisationer!A208,Deltagarförteckning!H:H)","v":0}]
[null,null,null,{"$f":"SUMIF(Deltagarförteckning!F:F,Register_deltag_organisationer!A209,Deltagarförteckning!H:H)","v":0}]
[null,null,null,{"$f":"SUMIF(Deltagarförteckning!F:F,Register_deltag_organisationer!A210,Deltagarförteckning!H:H)","v":0}]
[null,null,null,{"$f":"SUMIF(Deltagarförteckning!F:F,Register_deltag_organisationer!A211,Deltagarförteckning!H:H)","v":0}]
[null,null,null,{"$f":"SUMIF(Deltagarförteckning!F:F,Register_deltag_organisationer!A212,Deltagarförteckning!H:H)","v":0}]
[null,null,null,{"$f":"SUMIF(Deltagarförteckning!F:F,Register_deltag_organisationer!A213,Deltagarförteckning!H:H)","v":0}]
[null,null,null,{"$f":"SUMIF(Deltagarförteckning!F:F,Register_deltag_organisationer!A214,Deltagarförteckning!H:H)","v":0}]
[null,null,null,{"$f":"SUMIF(Deltagarförteckning!F:F,Register_deltag_organisationer!A215,Deltagarförteckning!H:H)","v":0}]
[null,null,null,{"$f":"SUMIF(Deltagarförteckning!F:F,Register_deltag_organisationer!A216,Deltagarförteckning!H:H)","v":0}]
[null,null,null,{"$f":"SUMIF(Deltagarförteckning!F:F,Register_deltag_organisationer!A217,Deltagarförteckning!H:H)","v":0}]
[null,null,null,{"$f":"SUMIF(Deltagarförteckning!F:F,Register_deltag_organisationer!A218,Deltagarförteckning!H:H)","v":0}]
[null,null,null,{"$f":"SUMIF(Deltagarförteckning!F:F,Register_deltag_organisationer!A219,Deltagarförteckning!H:H)","v":0}]
[null,null,null,{"$f":"SUMIF(Deltagarförteckning!F:F,Register_deltag_organisationer!A220,Deltagarförteckning!H:H)","v":0}]
[null,null,null,{"$f":"SUMIF(Deltagarförteckning!F:F,Register_deltag_organisationer!A221,Deltagarförteckning!H:H)","v":0}]
[null,null,null,{"$f":"SUMIF(Deltagarförteckning!F:F,Register_deltag_organisationer!A222,Deltagarförteckning!H:H)","v":0}]
[null,null,null,{"$f":"SUMIF(Deltagarförteckning!F:F,Register_deltag_organisationer!A223,Deltagarförteckning!H:H)","v":0}]
[null,null,null,{"$f":"SUMIF(Deltagarförteckning!F:F,Register_deltag_organisationer!A224,Deltagarförteckning!H:H)","v":0}]
[null,null,null,{"$f":"SUMIF(Deltagarförteckning!F:F,Register_deltag_organisationer!A225,Deltagarförteckning!H:H)","v":0}]
[null,null,null,{"$f":"SUMIF(Deltagarförteckning!F:F,Register_deltag_organisationer!A226,Deltagarförteckning!H:H)","v":0}]
[null,null,null,{"$f":"SUMIF(Deltagarförteckning!F:F,Register_deltag_organisationer!A227,Deltagarförteckning!H:H)","v":0}]
[null,null,null,{"$f":"SUMIF(Deltagarförteckning!F:F,Register_deltag_organisationer!A228,Deltagarförteckning!H:H)","v":0}]
[null,null,null,{"$f":"SUMIF(Deltagarförteckning!F:F,Register_deltag_organisationer!A229,Deltagarförteckning!H:H)","v":0}]
[null,null,null,{"$f":"SUMIF(Deltagarförteckning!F:F,Register_deltag_organisationer!A230,Deltagarförteckning!H:H)","v":0}]
[null,null,null,{"$f":"SUMIF(Deltagarförteckning!F:F,Register_deltag_organisationer!A231,Deltagarförteckning!H:H)","v":0}]
[null,null,null,{"$f":"SUMIF(Deltagarförteckning!F:F,Register_deltag_organisationer!A232,Deltagarförteckning!H:H)","v":0}]
[null,null,null,{"$f":"SUMIF(Deltagarförteckning!F:F,Register_deltag_organisationer!A233,Deltagarförteckning!H:H)","v":0}]
[null,null,null,{"$f":"SUMIF(Deltagarförteckning!F:F,Register_deltag_organisationer!A234,Deltagarförteckning!H:H)","v":0}]
[null,null,null,{"$f":"SUMIF(Deltagarförteckning!F:F,Register_deltag_organisationer!A235,Deltagarförteckning!H:H)","v":0}]
[null,null,null,{"$f":"SUMIF(Deltagarförteckning!F:F,Register_deltag_organisationer!A236,Deltagarförteckning!H:H)","v":0}]
[null,null,null,{"$f":"SUMIF(Deltagarförteckning!F:F,Register_deltag_organisationer!A237,Deltagarförteckning!H:H)","v":0}]
[null,null,null,{"$f":"SUMIF(Deltagarförteckning!F:F,Register_deltag_organisationer!A238,Deltagarförteckning!H:H)","v":0}]
[null,null,null,{"$f":"SUMIF(Deltagarförteckning!F:F,Register_deltag_organisationer!A239,Deltagarförteckning!H:H)","v":0}]
[null,null,null,{"$f":"SUMIF(Deltagarförteckning!F:F,Register_deltag_organisationer!A240,Deltagarförteckning!H:H)","v":0}]
[null,null,null,{"$f":"SUMIF(Deltagarförteckning!F:F,Register_deltag_organisationer!A241,Deltagarförteckning!H:H)","v":0}]
[null,null,null,{"$f":"SUMIF(Deltagarförteckning!F:F,Register_deltag_organisationer!A242,Deltagarförteckning!H:H)","v":0}]
[null,null,null,{"$f":"SUMIF(Deltagarförteckning!F:F,Register_deltag_organisationer!A243,Deltagarförteckning!H:H)","v":0}]
[null,null,null,{"$f":"SUMIF(Deltagarförteckning!F:F,Register_deltag_organisationer!A244,Deltagarförteckning!H:H)","v":0}]
[null,null,null,{"$f":"SUMIF(Deltagarförteckning!F:F,Register_deltag_organisationer!A245,Deltagarförteckning!H:H)","v":0}]
[null,null,null,{"$f":"SUMIF(Deltagarförteckning!F:F,Register_deltag_organisationer!A246,Deltagarförteckning!H:H)","v":0}]
[null,null,null,{"$f":"SUMIF(Deltagarförteckning!F:F,Register_deltag_organisationer!A247,Deltagarförteckning!H:H)","v":0}]
[null,null,null,{"$f":"SUMIF(Deltagarförteckning!F:F,Register_deltag_organisationer!A248,Deltagarförteckning!H:H)","v":0}]
[null,null,null,{"$f":"SUMIF(Deltagarförteckning!F:F,Register_deltag_organisationer!A249,Deltagarförteckning!H:H)","v":0}]
[null,null,null,{"$f":"SUMIF(Deltagarförteckning!F:F,Register_deltag_organisationer!A250,Deltagarförteckning!H:H)","v":0}]
[null,null,null,{"$f":"SUMIF(Deltagarförteckning!F:F,Register_deltag_organisationer!A251,Deltagarförteckning!H:H)","v":0}]
[null,null,null,{"$f":"SUMIF(Deltagarförteckning!F:F,Register_deltag_organisationer!A252,Deltagarförteckning!H:H)","v":0}]
[null,null,null,{"$f":"SUMIF(Deltagarförteckning!F:F,Register_deltag_organisationer!A253,Deltagarförteckning!H:H)","v":0}]
[null,null,null,{"$f":"SUMIF(Deltagarförteckning!F:F,Register_deltag_organisationer!A254,Deltagarförteckning!H:H)","v":0}]
[null,null,null,{"$f":"SUMIF(Deltagarförteckning!F:F,Register_deltag_organisationer!A255,Deltagarförteckning!H:H)","v":0}]
[null,null,null,{"$f":"SUMIF(Deltagarförteckning!F:F,Register_deltag_organisationer!A256,Deltagarförteckning!H:H)","v":0}]
[null,null,null,{"$f":"SUMIF(Deltagarförteckning!F:F,Register_deltag_organisationer!A257,Deltagarförteckning!H:H)","v":0}]
[null,null,null,{"$f":"SUMIF(Deltagarförteckning!F:F,Register_deltag_organisationer!A258,Deltagarförteckning!H:H)","v":0}]
[null,null,null,{"$f":"SUMIF(Deltagarförteckning!F:F,Register_deltag_organisationer!A259,Deltagarförteckning!H:H)","v":0}]
[null,null,null,{"$f":"SUMIF(Deltagarförteckning!F:F,Register_deltag_organisationer!A260,Deltagarförteckning!H:H)","v":0}]
[null,null,null,{"$f":"SUMIF(Deltagarförteckning!F:F,Register_deltag_organisationer!A261,Deltagarförteckning!H:H)","v":0}]
[null,null,null,{"$f":"SUMIF(Deltagarförteckning!F:F,Register_deltag_organisationer!A262,Deltagarförteckning!H:H)","v":0}]
[null,null,null,{"$f":"SUMIF(Deltagarförteckning!F:F,Register_deltag_organisationer!A263,Deltagarförteckning!H:H)","v":0}]
[null,null,null,{"$f":"SUMIF(Deltagarförteckning!F:F,Register_deltag_organisationer!A264,Deltagarförteckning!H:H)","v":0}]
[null,null,null,{"$f":"SUMIF(Deltagarförteckning!F:F,Register_deltag_organisationer!A265,Deltagarförteckning!H:H)","v":0}]
[null,null,null,{"$f":"SUMIF(Deltagarförteckning!F:F,Register_deltag_organisationer!A266,Deltagarförteckning!H:H)","v":0}]
[null,null,null,{"$f":"SUMIF(Deltagarförteckning!F:F,Register_deltag_organisationer!A267,Deltagarförteckning!H:H)","v":0}]
[null,null,null,{"$f":"SUMIF(Deltagarförteckning!F:F,Register_deltag_organisationer!A268,Deltagarförteckning!H:H)","v":0}]
[null,null,null,{"$f":"SUMIF(Deltagarförteckning!F:F,Register_deltag_organisationer!A269,Deltagarförteckning!H:H)","v":0}]
[null,null,null,{"$f":"SUMIF(Deltagarförteckning!F:F,Register_deltag_organisationer!A270,Deltagarförteckning!H:H)","v":0}]
[null,null,null,{"$f":"SUMIF(Deltagarförteckning!F:F,Register_deltag_organisationer!A271,Deltagarförteckning!H:H)","v":0}]
[null,null,null,{"$f":"SUMIF(Deltagarförteckning!F:F,Register_deltag_organisationer!A272,Deltagarförteckning!H:H)","v":0}]
[null,null,null,{"$f":"SUMIF(Deltagarförteckning!F:F,Register_deltag_organisationer!A273,Deltagarförteckning!H:H)","v":0}]
[null,null,null,{"$f":"SUMIF(Deltagarförteckning!F:F,Register_deltag_organisationer!A274,Deltagarförteckning!H:H)","v":0}]
[null,null,null,{"$f":"SUMIF(Deltagarförteckning!F:F,Register_deltag_organisationer!A275,Deltagarförteckning!H:H)","v":0}]
[null,null,null,{"$f":"SUMIF(Deltagarförteckning!F:F,Register_deltag_organisationer!A276,Deltagarförteckning!H:H)","v":0}]
[null,null,null,{"$f":"SUMIF(Deltagarförteckning!F:F,Register_deltag_organisationer!A277,Deltagarförteckning!H:H)","v":0}]
[null,null,null,{"$f":"SUMIF(Deltagarförteckning!F:F,Register_deltag_organisationer!A278,Deltagarförteckning!H:H)","v":0}]
[null,null,null,{"$f":"SUMIF(Deltagarförteckning!F:F,Register_deltag_organisationer!A279,Deltagarförteckning!H:H)","v":0}]
[null,null,null,{"$f":"SUMIF(Deltagarförteckning!F:F,Register_deltag_organisationer!A280,Deltagarförteckning!H:H)","v":0}]
[null,null,null,{"$f":"SUMIF(Deltagarförteckning!F:F,Register_deltag_organisationer!A281,Deltagarförteckning!H:H)","v":0}]
[null,null,null,{"$f":"SUMIF(Deltagarförteckning!F:F,Register_deltag_organisationer!A282,Deltagarförteckning!H:H)","v":0}]
[null,null,null,{"$f":"SUMIF(Deltagarförteckning!F:F,Register_deltag_organisationer!A283,Deltagarförteckning!H:H)","v":0}]
[null,null,null,{"$f":"SUMIF(Deltagarförteckning!F:F,Register_deltag_organisationer!A284,Deltagarförteckning!H:H)","v":0}]
[null,null,null,{"$f":"SUMIF(Deltagarförteckning!F:F,Register_deltag_organisationer!A285,Deltagarförteckning!H:H)","v":0}]
[null,null,null,{"$f":"SUMIF(Deltagarförteckning!F:F,Register_deltag_organisationer!A286,Deltagarförteckning!H:H)","v":0}]
[null,null,null,{"$f":"SUMIF(Deltagarförteckning!F:F,Register_deltag_organisationer!A287,Deltagarförteckning!H:H)","v":0}]
[null,null,null,{"$f":"SUMIF(Deltagarförteckning!F:F,Register_deltag_organisationer!A288,Deltagarförteckning!H:H)","v":0}]
[null,null,null,{"$f":"SUMIF(Deltagarförteckning!F:F,Register_deltag_organisationer!A289,Deltagarförteckning!H:H)","v":0}]
[null,null,null,{"$f":"SUMIF(Deltagarförteckning!F:F,Register_deltag_organisationer!A290,Deltagarförteckning!H:H)","v":0}]
[null,null,null,{"$f":"SUMIF(Deltagarförteckning!F:F,Register_deltag_organisationer!A291,Deltagarförteckning!H:H)","v":0}]
[null,null,null,{"$f":"SUMIF(Deltagarförteckning!F:F,Register_deltag_organisationer!A292,Deltagarförteckning!H:H)","v":0}]
[null,null,null,{"$f":"SUMIF(Deltagarförteckning!F:F,Register_deltag_organisationer!A293,Deltagarförteckning!H:H)","v":0}]
[null,null,null,{"$f":"SUMIF(Deltagarförteckning!F:F,Register_deltag_organisationer!A294,Deltagarförteckning!H:H)","v":0}]
[null,null,null,{"$f":"SUMIF(Deltagarförteckning!F:F,Register_deltag_organisationer!A295,Deltagarförteckning!H:H)","v":0}]
[null,null,null,{"$f":"SUMIF(Deltagarförteckning!F:F,Register_deltag_organisationer!A296,Deltagarförteckning!H:H)","v":0}]
[null,null,null,{"$f":"SUMIF(Deltagarförteckning!F:F,Register_deltag_organisationer!A297,Deltagarförteckning!H:H)","v":0}]
[null,null,null,{"$f":"SUMIF(Deltagarförteckning!F:F,Register_deltag_organisationer!A298,Deltagarförteckning!H:H)","v":0}]
[null,null,null,{"$f":"SUMIF(Deltagarförteckning!F:F,Register_deltag_organisationer!A299,Deltagarförteckning!H:H)","v":0}]
[null,null,null,{"$f":"SUMIF(Deltagarförteckning!F:F,Register_deltag_organisationer!A300,Deltagarförteckning!H:H)","v":0}]
[null,null,null,{"$f":"SUMIF(Deltagarförteckning!F:F,Register_deltag_organisationer!A301,Deltagarförteckning!H:H)","v":0}]
[null,null,null,{"$f":"SUMIF(Deltagarförteckning!F:F,Register_deltag_organisationer!A302,Deltagarförteckning!H:H)","v":0}]
[null,null,null,{"$f":"SUMIF(Deltagarförteckning!F:F,Register_deltag_organisationer!A303,Deltagarförteckning!H:H)","v":0}]
[null,null,null,{"$f":"SUMIF(Deltagarförteckning!F:F,Register_deltag_organisationer!A304,Deltagarförteckning!H:H)","v":0}]
[null,null,null,{"$f":"SUMIF(Deltagarförteckning!F:F,Register_deltag_organisationer!A305,Deltagarförteckning!H:H)","v":0}]
[null,null,null,{"$f":"SUMIF(Deltagarförteckning!F:F,Register_deltag_organisationer!A306,Deltagarförteckning!H:H)","v":0}]
[null,null,null,{"$f":"SUMIF(Deltagarförteckning!F:F,Register_deltag_organisationer!A307,Deltagarförteckning!H:H)","v":0}]
[null,null,null,{"$f":"SUMIF(Deltagarförteckning!F:F,Register_deltag_organisationer!A308,Deltagarförteckning!H:H)","v":0}]
[null,null,null,{"$f":"SUMIF(Deltagarförteckning!F:F,Register_deltag_organisationer!A309,Deltagarförteckning!H:H)","v":0}]
[null,null,null,{"$f":"SUMIF(Deltagarförteckning!F:F,Register_deltag_organisationer!A310,Deltagarförteckning!H:H)","v":0}]
[null,null,null,{"$f":"SUMIF(Deltagarförteckning!F:F,Register_deltag_organisationer!A311,Deltagarförteckning!H:H)","v":0}]
[null,null,null,{"$f":"SUMIF(Deltagarförteckning!F:F,Register_deltag_organisationer!A312,Deltagarförteckning!H:H)","v":0}]
[null,null,null,{"$f":"SUMIF(Deltagarförteckning!F:F,Register_deltag_organisationer!A313,Deltagarförteckning!H:H)","v":0}]
[null,null,null,{"$f":"SUMIF(Deltagarförteckning!F:F,Register_deltag_organisationer!A314,Deltagarförteckning!H:H)","v":0}]
[null,null,null,{"$f":"SUMIF(Deltagarförteckning!F:F,Register_deltag_organisationer!A315,Deltagarförteckning!H:H)","v":0}]
[null,null,null,{"$f":"SUMIF(Deltagarförteckning!F:F,Register_deltag_organisationer!A316,Deltagarförteckning!H:H)","v":0}]
[null,null,null,{"$f":"SUMIF(Deltagarförteckning!F:F,Register_deltag_organisationer!A317,Deltagarförteckning!H:H)","v":0}]
[null,null,null,{"$f":"SUMIF(Deltagarförteckning!F:F,Register_deltag_organisationer!A318,Deltagarförteckning!H:H)","v":0}]
[null,null,null,{"$f":"SUMIF(Deltagarförteckning!F:F,Register_deltag_organisationer!A319,Deltagarförteckning!H:H)","v":0}]
[null,null,null,{"$f":"SUMIF(Deltagarförteckning!F:F,Register_deltag_organisationer!A320,Deltagarförteckning!H:H)","v":0}]
[null,null,null,{"$f":"SUMIF(Deltagarförteckning!F:F,Register_deltag_organisationer!A321,Deltagarförteckning!H:H)","v":0}]
[null,null,null,{"$f":"SUMIF(Deltagarförteckning!F:F,Register_deltag_organisationer!A322,Deltagarförteckning!H:H)","v":0}]
[null,null,null,{"$f":"SUMIF(Deltagarförteckning!F:F,Register_deltag_organisationer!A323,Deltagarförteckning!H:H)","v":0}]
[null,null,null,{"$f":"SUMIF(Deltagarförteckning!F:F,Register_deltag_organisationer!A324,Deltagarförteckning!H:H)","v":0}]
[null,null,null,{"$f":"SUMIF(Deltagarförteckning!F:F,Register_deltag_organisationer!A325,Deltagarförteckning!H:H)","v":0}]
[null,null,null,{"$f":"SUMIF(Deltagarförteckning!F:F,Register_deltag_organisationer!A326,Deltagarförteckning!H:H)","v":0}]
[null,null,null,{"$f":"SUMIF(Deltagarförteckning!F:F,Register_deltag_organisationer!A327,Deltagarförteckning!H:H)","v":0}]
[null,null,null,{"$f":"SUMIF(Deltagarförteckning!F:F,Register_deltag_organisationer!A328,Deltagarförteckning!H:H)","v":0}]
[null,null,null,{"$f":"SUMIF(Deltagarförteckning!F:F,Register_deltag_organisationer!A329,Deltagarförteckning!H:H)","v":0}]
[null,null,null,{"$f":"SUMIF(Deltagarförteckning!F:F,Register_deltag_organisationer!A330,Deltagarförteckning!H:H)","v":0}]
[null,null,null,{"$f":"SUMIF(Deltagarförteckning!F:F,Register_deltag_organisationer!A331,Deltagarförteckning!H:H)","v":0}]
[null,null,null,{"$f":"SUMIF(Deltagarförteckning!F:F,Register_deltag_organisationer!A332,Deltagarförteckning!H:H)","v":0}]
[null,null,null,{"$f":"SUMIF(Deltagarförteckning!F:F,Register_deltag_organisationer!A333,Deltagarförteckning!H:H)","v":0}]
[null,null,null,{"$f":"SUMIF(Deltagarförteckning!F:F,Register_deltag_organisationer!A334,Deltagarförteckning!H:H)","v":0}]
[null,null,null,{"$f":"SUMIF(Deltagarförteckning!F:F,Register_deltag_organisationer!A335,Deltagarförteckning!H:H)","v":0}]
[null,null,null,{"$f":"SUMIF(Deltagarförteckning!F:F,Register_deltag_organisationer!A336,Deltagarförteckning!H:H)","v":0}]
[null,null,null,{"$f":"SUMIF(Deltagarförteckning!F:F,Register_deltag_organisationer!A337,Deltagarförteckning!H:H)","v":0}]
[null,null,null,{"$f":"SUMIF(Deltagarförteckning!F:F,Register_deltag_organisationer!A338,Deltagarförteckning!H:H)","v":0}]
[null,null,null,{"$f":"SUMIF(Deltagarförteckning!F:F,Register_deltag_organisationer!A339,Deltagarförteckning!H:H)","v":0}]
[null,null,null,{"$f":"SUMIF(Deltagarförteckning!F:F,Register_deltag_organisationer!A340,Deltagarförteckning!H:H)","v":0}]
[null,null,null,{"$f":"SUMIF(Deltagarförteckning!F:F,Register_deltag_organisationer!A341,Deltagarförteckning!H:H)","v":0}]
[null,null,null,{"$f":"SUMIF(Deltagarförteckning!F:F,Register_deltag_organisationer!A342,Deltagarförteckning!H:H)","v":0}]
[null,null,null,{"$f":"SUMIF(Deltagarförteckning!F:F,Register_deltag_organisationer!A343,Deltagarförteckning!H:H)","v":0}]
[null,null,null,{"$f":"SUMIF(Deltagarförteckning!F:F,Register_deltag_organisationer!A344,Deltagarförteckning!H:H)","v":0}]
[null,null,null,{"$f":"SUMIF(Deltagarförteckning!F:F,Register_deltag_organisationer!A345,Deltagarförteckning!H:H)","v":0}]
[null,null,null,{"$f":"SUMIF(Deltagarförteckning!F:F,Register_deltag_organisationer!A346,Deltagarförteckning!H:H)","v":0}]
[null,null,null,{"$f":"SUMIF(Deltagarförteckning!F:F,Register_deltag_organisationer!A347,Deltagarförteckning!H:H)","v":0}]
[null,null,null,{"$f":"SUMIF(Deltagarförteckning!F:F,Register_deltag_organisationer!A348,Deltagarförteckning!H:H)","v":0}]
[null,null,null,{"$f":"SUMIF(Deltagarförteckning!F:F,Register_deltag_organisationer!A349,Deltagarförteckning!H:H)","v":0}]
[null,null,null,{"$f":"SUMIF(Deltagarförteckning!F:F,Register_deltag_organisationer!A350,Deltagarförteckning!H:H)","v":0}]
[null,null,null,{"$f":"SUMIF(Deltagarförteckning!F:F,Register_deltag_organisationer!A351,Deltagarförteckning!H:H)","v":0}]
[null,null,null,{"$f":"SUMIF(Deltagarförteckning!F:F,Register_deltag_organisationer!A352,Deltagarförteckning!H:H)","v":0}]
[null,null,null,{"$f":"SUMIF(Deltagarförteckning!F:F,Register_deltag_organisationer!A353,Deltagarförteckning!H:H)","v":0}]
[null,null,null,{"$f":"SUMIF(Deltagarförteckning!F:F,Register_deltag_organisationer!A354,Deltagarförteckning!H:H)","v":0}]
[null,null,null,{"$f":"SUMIF(Deltagarförteckning!F:F,Register_deltag_organisationer!A355,Deltagarförteckning!H:H)","v":0}]
[null,null,null,{"$f":"SUMIF(Deltagarförteckning!F:F,Register_deltag_organisationer!A356,Deltagarförteckning!H:H)","v":0}]
[null,null,null,{"$f":"SUMIF(Deltagarförteckning!F:F,Register_deltag_organisationer!A357,Deltagarförteckning!H:H)","v":0}]
[null,null,null,{"$f":"SUMIF(Deltagarförteckning!F:F,Register_deltag_organisationer!A358,Deltagarförteckning!H:H)","v":0}]
[null,null,null,{"$f":"SUMIF(Deltagarförteckning!F:F,Register_deltag_organisationer!A359,Deltagarförteckning!H:H)","v":0}]
[null,null,null,{"$f":"SUMIF(Deltagarförteckning!F:F,Register_deltag_organisationer!A360,Deltagarförteckning!H:H)","v":0}]
[null,null,null,{"$f":"SUMIF(Deltagarförteckning!F:F,Register_deltag_organisationer!A361,Deltagarförteckning!H:H)","v":0}]
[null,null,null,{"$f":"SUMIF(Deltagarförteckning!F:F,Register_deltag_organisationer!A362,Deltagarförteckning!H:H)","v":0}]
[null,null,null,{"$f":"SUMIF(Deltagarförteckning!F:F,Register_deltag_organisationer!A363,Deltagarförteckning!H:H)","v":0}]
[null,null,null,{"$f":"SUMIF(Deltagarförteckning!F:F,Register_deltag_organisationer!A364,Deltagarförteckning!H:H)","v":0}]
[null,null,null,{"$f":"SUMIF(Deltagarförteckning!F:F,Register_deltag_organisationer!A365,Deltagarförteckning!H:H)","v":0}]
[null,null,null,{"$f":"SUMIF(Deltagarförteckning!F:F,Register_deltag_organisationer!A366,Deltagarförteckning!H:H)","v":0}]
[null,null,null,{"$f":"SUMIF(Deltagarförteckning!F:F,Register_deltag_organisationer!A367,Deltagarförteckning!H:H)","v":0}]
[null,null,null,{"$f":"SUMIF(Deltagarförteckning!F:F,Register_deltag_organisationer!A368,Deltagarförteckning!H:H)","v":0}]
[null,null,null,{"$f":"SUMIF(Deltagarförteckning!F:F,Register_deltag_organisationer!A369,Deltagarförteckning!H:H)","v":0}]
[null,null,null,{"$f":"SUMIF(Deltagarförteckning!F:F,Register_deltag_organisationer!A370,Deltagarförteckning!H:H)","v":0}]
[null,null,null,{"$f":"SUMIF(Deltagarförteckning!F:F,Register_deltag_organisationer!A371,Deltagarförteckning!H:H)","v":0}]
[null,null,null,{"$f":"SUMIF(Deltagarförteckning!F:F,Register_deltag_organisationer!A372,Deltagarförteckning!H:H)","v":0}]
[null,null,null,{"$f":"SUMIF(Deltagarförteckning!F:F,Register_deltag_organisationer!A373,Deltagarförteckning!H:H)","v":0}]
[null,null,null,{"$f":"SUMIF(Deltagarförteckning!F:F,Register_deltag_organisationer!A374,Deltagarförteckning!H:H)","v":0}]
[null,null,null,{"$f":"SUMIF(Deltagarförteckning!F:F,Register_deltag_organisationer!A375,Deltagarförteckning!H:H)","v":0}]
[null,null,null,{"$f":"SUMIF(Deltagarförteckning!F:F,Register_deltag_organisationer!A376,Deltagarförteckning!H:H)","v":0}]
[null,null,null,{"$f":"SUMIF(Deltagarförteckning!F:F,Register_deltag_organisationer!A377,Deltagarförteckning!H:H)","v":0}]
[null,null,null,{"$f":"SUMIF(Deltagarförteckning!F:F,Register_deltag_organisationer!A378,Deltagarförteckning!H:H)","v":0}]
[null,null,null,{"$f":"SUMIF(Deltagarförteckning!F:F,Register_deltag_organisationer!A379,Deltagarförteckning!H:H)","v":0}]
[null,null,null,{"$f":"SUMIF(Deltagarförteckning!F:F,Register_deltag_organisationer!A380,Deltagarförteckning!H:H)","v":0}]
[null,null,null,{"$f":"SUMIF(Deltagarförteckning!F:F,Register_deltag_organisationer!A381,Deltagarförteckning!H:H)","v":0}]
[null,null,null,{"$f":"SUMIF(Deltagarförteckning!F:F,Register_deltag_organisationer!A382,Deltagarförteckning!H:H)","v":0}]
[null,null,null,{"$f":"SUMIF(Deltagarförteckning!F:F,Register_deltag_organisationer!A383,Deltagarförteckning!H:H)","v":0}]
[null,null,null,{"$f":"SUMIF(Deltagarförteckning!F:F,Register_deltag_organisationer!A384,Deltagarförteckning!H:H)","v":0}]
[null,null,null,{"$f":"SUMIF(Deltagarförteckning!F:F,Register_deltag_organisationer!A385,Deltagarförteckning!H:H)","v":0}]
[null,null,null,{"$f":"SUMIF(Deltagarförteckning!F:F,Register_deltag_organisationer!A386,Deltagarförteckning!H:H)","v":0}]
[null,null,null,{"$f":"SUMIF(Deltagarförteckning!F:F,Register_deltag_organisationer!A387,Deltagarförteckning!H:H)","v":0}]
[null,null,null,{"$f":"SUMIF(Deltagarförteckning!F:F,Register_deltag_organisationer!A388,Deltagarförteckning!H:H)","v":0}]
[null,null,null,{"$f":"SUMIF(Deltagarförteckning!F:F,Register_deltag_organisationer!A389,Deltagarförteckning!H:H)","v":0}]
[null,null,null,{"$f":"SUMIF(Deltagarförteckning!F:F,Register_deltag_organisationer!A390,Deltagarförteckning!H:H)","v":0}]
[null,null,null,{"$f":"SUMIF(Deltagarförteckning!F:F,Register_deltag_organisationer!A391,Deltagarförteckning!H:H)","v":0}]
[null,null,null,{"$f":"SUMIF(Deltagarförteckning!F:F,Register_deltag_organisationer!A392,Deltagarförteckning!H:H)","v":0}]
[null,null,null,{"$f":"SUMIF(Deltagarförteckning!F:F,Register_deltag_organisationer!A393,Deltagarförteckning!H:H)","v":0}]
[null,null,null,{"$f":"SUMIF(Deltagarförteckning!F:F,Register_deltag_organisationer!A394,Deltagarförteckning!H:H)","v":0}]
[null,null,null,{"$f":"SUMIF(Deltagarförteckning!F:F,Register_deltag_organisationer!A395,Deltagarförteckning!H:H)","v":0}]
[null,null,null,{"$f":"SUMIF(Deltagarförteckning!F:F,Register_deltag_organisationer!A396,Deltagarförteckning!H:H)","v":0}]
[null,null,null,{"$f":"SUMIF(Deltagarförteckning!F:F,Register_deltag_organisationer!A397,Deltagarförteckning!H:H)","v":0}]
[null,null,null,{"$f":"SUMIF(Deltagarförteckning!F:F,Register_deltag_organisationer!A398,Deltagarförteckning!H:H)","v":0}]
[null,null,null,{"$f":"SUMIF(Deltagarförteckning!F:F,Register_deltag_organisationer!A399,Deltagarförteckning!H:H)","v":0}]
[null,null,null,{"$f":"SUMIF(Deltagarförteckning!F:F,Register_deltag_organisationer!A400,Deltagarförteckning!H:H)","v":0}]
[null,null,null,{"$f":"SUMIF(Deltagarförteckning!F:F,Register_deltag_organisationer!A401,Deltagarförteckning!H:H)","v":0}]
[null,null,null,{"$f":"SUMIF(Deltagarförteckning!F:F,Register_deltag_organisationer!A402,Deltagarförteckning!H:H)","v":0}]
[null,null,null,{"$f":"SUMIF(Deltagarförteckning!F:F,Register_deltag_organisationer!A403,Deltagarförteckning!H:H)","v":0}]
[null,null,null,{"$f":"SUMIF(Deltagarförteckning!F:F,Register_deltag_organisationer!A404,Deltagarförteckning!H:H)","v":0}]
[null,null,null,{"$f":"SUMIF(Deltagarförteckning!F:F,Register_deltag_organisationer!A405,Deltagarförteckning!H:H)","v":0}]
[null,null,null,{"$f":"SUMIF(Deltagarförteckning!F:F,Register_deltag_organisationer!A406,Deltagarförteckning!H:H)","v":0}]
[null,null,null,{"$f":"SUMIF(Deltagarförteckning!F:F,Register_deltag_organisationer!A407,Deltagarförteckning!H:H)","v":0}]
[null,null,null,{"$f":"SUMIF(Deltagarförteckning!F:F,Register_deltag_organisationer!A408,Deltagarförteckning!H:H)","v":0}]
[null,null,null,{"$f":"SUMIF(Deltagarförteckning!F:F,Register_deltag_organisationer!A409,Deltagarförteckning!H:H)","v":0}]
[null,null,null,{"$f":"SUMIF(Deltagarförteckning!F:F,Register_deltag_organisationer!A410,Deltagarförteckning!H:H)","v":0}]
[null,null,null,{"$f":"SUMIF(Deltagarförteckning!F:F,Register_deltag_organisationer!A411,Deltagarförteckning!H:H)","v":0}]
[null,null,null,{"$f":"SUMIF(Deltagarförteckning!F:F,Register_deltag_organisationer!A412,Deltagarförteckning!H:H)","v":0}]
[null,null,null,{"$f":"SUMIF(Deltagarförteckning!F:F,Register_deltag_organisationer!A413,Deltagarförteckning!H:H)","v":0}]
[null,null,null,{"$f":"SUMIF(Deltagarförteckning!F:F,Register_deltag_organisationer!A414,Deltagarförteckning!H:H)","v":0}]
[null,null,null,{"$f":"SUMIF(Deltagarförteckning!F:F,Register_deltag_organisationer!A415,Deltagarförteckning!H:H)","v":0}]
[null,null,null,{"$f":"SUMIF(Deltagarförteckning!F:F,Register_deltag_organisationer!A416,Deltagarförteckning!H:H)","v":0}]
[null,null,null,{"$f":"SUMIF(Deltagarförteckning!F:F,Register_deltag_organisationer!A417,Deltagarförteckning!H:H)","v":0}]
[null,null,null,{"$f":"SUMIF(Deltagarförteckning!F:F,Register_deltag_organisationer!A418,Deltagarförteckning!H:H)","v":0}]
[null,null,null,{"$f":"SUMIF(Deltagarförteckning!F:F,Register_deltag_organisationer!A419,Deltagarförteckning!H:H)","v":0}]
[null,null,null,{"$f":"SUMIF(Deltagarförteckning!F:F,Register_deltag_organisationer!A420,Deltagarförteckning!H:H)","v":0}]
[null,null,null,{"$f":"SUMIF(Deltagarförteckning!F:F,Register_deltag_organisationer!A421,Deltagarförteckning!H:H)","v":0}]
[null,null,null,{"$f":"SUMIF(Deltagarförteckning!F:F,Register_deltag_organisationer!A422,Deltagarförteckning!H:H)","v":0}]
[null,null,null,{"$f":"SUMIF(Deltagarförteckning!F:F,Register_deltag_organisationer!A423,Deltagarförteckning!H:H)","v":0}]
[null,null,null,{"$f":"SUMIF(Deltagarförteckning!F:F,Register_deltag_organisationer!A424,Deltagarförteckning!H:H)","v":0}]
[null,null,null,{"$f":"SUMIF(Deltagarförteckning!F:F,Register_deltag_organisationer!A425,Deltagarförteckning!H:H)","v":0}]
[null,null,null,{"$f":"SUMIF(Deltagarförteckning!F:F,Register_deltag_organisationer!A426,Deltagarförteckning!H:H)","v":0}]
[null,null,null,{"$f":"SUMIF(Deltagarförteckning!F:F,Register_deltag_organisationer!A427,Deltagarförteckning!H:H)","v":0}]
[null,null,null,{"$f":"SUMIF(Deltagarförteckning!F:F,Register_deltag_organisationer!A428,Deltagarförteckning!H:H)","v":0}]
[null,null,null,{"$f":"SUMIF(Deltagarförteckning!F:F,Register_deltag_organisationer!A429,Deltagarförteckning!H:H)","v":0}]
[null,null,null,{"$f":"SUMIF(Deltagarförteckning!F:F,Register_deltag_organisationer!A430,Deltagarförteckning!H:H)","v":0}]
[null,null,null,{"$f":"SUMIF(Deltagarförteckning!F:F,Register_deltag_organisationer!A431,Deltagarförteckning!H:H)","v":0}]
[null,null,null,{"$f":"SUMIF(Deltagarförteckning!F:F,Register_deltag_organisationer!A432,Deltagarförteckning!H:H)","v":0}]
[null,null,null,{"$f":"SUMIF(Deltagarförteckning!F:F,Register_deltag_organisationer!A433,Deltagarförteckning!H:H)","v":0}]
[null,null,null,{"$f":"SUMIF(Deltagarförteckning!F:F,Register_deltag_organisationer!A434,Deltagarförteckning!H:H)","v":0}]
[null,null,null,{"$f":"SUMIF(Deltagarförteckning!F:F,Register_deltag_organisationer!A435,Deltagarförteckning!H:H)","v":0}]
[null,null,null,{"$f":"SUMIF(Deltagarförteckning!F:F,Register_deltag_organisationer!A436,Deltagarförteckning!H:H)","v":0}]
[null,null,null,{"$f":"SUMIF(Deltagarförteckning!F:F,Register_deltag_organisationer!A437,Deltagarförteckning!H:H)","v":0}]
[null,null,null,{"$f":"SUMIF(Deltagarförteckning!F:F,Register_deltag_organisationer!A438,Deltagarförteckning!H:H)","v":0}]
[null,null,null,{"$f":"SUMIF(Deltagarförteckning!F:F,Register_deltag_organisationer!A439,Deltagarförteckning!H:H)","v":0}]
[null,null,null,{"$f":"SUMIF(Deltagarförteckning!F:F,Register_deltag_organisationer!A440,Deltagarförteckning!H:H)","v":0}]
[null,null,null,{"$f":"SUMIF(Deltagarförteckning!F:F,Register_deltag_organisationer!A441,Deltagarförteckning!H:H)","v":0}]
[null,null,null,{"$f":"SUMIF(Deltagarförteckning!F:F,Register_deltag_organisationer!A442,Deltagarförteckning!H:H)","v":0}]
[null,null,null,{"$f":"SUMIF(Deltagarförteckning!F:F,Register_deltag_organisationer!A443,Deltagarförteckning!H:H)","v":0}]
[null,null,null,{"$f":"SUMIF(Deltagarförteckning!F:F,Register_deltag_organisationer!A444,Deltagarförteckning!H:H)","v":0}]
[null,null,null,{"$f":"SUMIF(Deltagarförteckning!F:F,Register_deltag_organisationer!A445,Deltagarförteckning!H:H)","v":0}]
[null,null,null,{"$f":"SUMIF(Deltagarförteckning!F:F,Register_deltag_organisationer!A446,Deltagarförteckning!H:H)","v":0}]
[null,null,null,{"$f":"SUMIF(Deltagarförteckning!F:F,Register_deltag_organisationer!A447,Deltagarförteckning!H:H)","v":0}]
[null,null,null,{"$f":"SUMIF(Deltagarförteckning!F:F,Register_deltag_organisationer!A448,Deltagarförteckning!H:H)","v":0}]
[null,null,null,{"$f":"SUMIF(Deltagarförteckning!F:F,Register_deltag_organisationer!A449,Deltagarförteckning!H:H)","v":0}]
[null,null,null,{"$f":"SUMIF(Deltagarförteckning!F:F,Register_deltag_organisationer!A450,Deltagarförteckning!H:H)","v":0}]
[null,null,null,{"$f":"SUMIF(Deltagarförteckning!F:F,Register_deltag_organisationer!A451,Deltagarförteckning!H:H)","v":0}]
[null,null,null,{"$f":"SUMIF(Deltagarförteckning!F:F,Register_deltag_organisationer!A452,Deltagarförteckning!H:H)","v":0}]
[null,null,null,{"$f":"SUMIF(Deltagarförteckning!F:F,Register_deltag_organisationer!A453,Deltagarförteckning!H:H)","v":0}]
[null,null,null,{"$f":"SUMIF(Deltagarförteckning!F:F,Register_deltag_organisationer!A454,Deltagarförteckning!H:H)","v":0}]
[null,null,null,{"$f":"SUMIF(Deltagarförteckning!F:F,Register_deltag_organisationer!A455,Deltagarförteckning!H:H)","v":0}]
[null,null,null,{"$f":"SUMIF(Deltagarförteckning!F:F,Register_deltag_organisationer!A456,Deltagarförteckning!H:H)","v":0}]
[null,null,null,{"$f":"SUMIF(Deltagarförteckning!F:F,Register_deltag_organisationer!A457,Deltagarförteckning!H:H)","v":0}]
[null,null,null,{"$f":"SUMIF(Deltagarförteckning!F:F,Register_deltag_organisationer!A458,Deltagarförteckning!H:H)","v":0}]
[null,null,null,{"$f":"SUMIF(Deltagarförteckning!F:F,Register_deltag_organisationer!A459,Deltagarförteckning!H:H)","v":0}]
[null,null,null,{"$f":"SUMIF(Deltagarförteckning!F:F,Register_deltag_organisationer!A460,Deltagarförteckning!H:H)","v":0}]
[null,null,null,{"$f":"SUMIF(Deltagarförteckning!F:F,Register_deltag_organisationer!A461,Deltagarförteckning!H:H)","v":0}]
[null,null,null,{"$f":"SUMIF(Deltagarförteckning!F:F,Register_deltag_organisationer!A462,Deltagarförteckning!H:H)","v":0}]
[null,null,null,{"$f":"SUMIF(Deltagarförteckning!F:F,Register_deltag_organisationer!A463,Deltagarförteckning!H:H)","v":0}]
[null,null,null,{"$f":"SUMIF(Deltagarförteckning!F:F,Register_deltag_organisationer!A464,Deltagarförteckning!H:H)","v":0}]
[null,null,null,{"$f":"SUMIF(Deltagarförteckning!F:F,Register_deltag_organisationer!A465,Deltagarförteckning!H:H)","v":0}]
[null,null,null,{"$f":"SUMIF(Deltagarförteckning!F:F,Register_deltag_organisationer!A466,Deltagarförteckning!H:H)","v":0}]
[null,null,null,{"$f":"SUMIF(Deltagarförteckning!F:F,Register_deltag_organisationer!A467,Deltagarförteckning!H:H)","v":0}]
[null,null,null,{"$f":"SUMIF(Deltagarförteckning!F:F,Register_deltag_organisationer!A468,Deltagarförteckning!H:H)","v":0}]
[null,null,null,{"$f":"SUMIF(Deltagarförteckning!F:F,Register_deltag_organisationer!A469,Deltagarförteckning!H:H)","v":0}]
[null,null,null,{"$f":"SUMIF(Deltagarförteckning!F:F,Register_deltag_organisationer!A470,Deltagarförteckning!H:H)","v":0}]
[null,null,null,{"$f":"SUMIF(Deltagarförteckning!F:F,Register_deltag_organisationer!A471,Deltagarförteckning!H:H)","v":0}]
[null,null,null,{"$f":"SUMIF(Deltagarförteckning!F:F,Register_deltag_organisationer!A472,Deltagarförteckning!H:H)","v":0}]
[null,null,null,{"$f":"SUMIF(Deltagarförteckning!F:F,Register_deltag_organisationer!A473,Deltagarförteckning!H:H)","v":0}]
[null,null,null,{"$f":"SUMIF(Deltagarförteckning!F:F,Register_deltag_organisationer!A474,Deltagarförteckning!H:H)","v":0}]
[null,null,null,{"$f":"SUMIF(Deltagarförteckning!F:F,Register_deltag_organisationer!A475,Deltagarförteckning!H:H)","v":0}]
[null,null,null,{"$f":"SUMIF(Deltagarförteckning!F:F,Register_deltag_organisationer!A476,Deltagarförteckning!H:H)","v":0}]
[null,null,null,{"$f":"SUMIF(Deltagarförteckning!F:F,Register_deltag_organisationer!A477,Deltagarförteckning!H:H)","v":0}]
[null,null,null,{"$f":"SUMIF(Deltagarförteckning!F:F,Register_deltag_organisationer!A478,Deltagarförteckning!H:H)","v":0}]
[null,null,null,{"$f":"SUMIF(Deltagarförteckning!F:F,Register_deltag_organisationer!A479,Deltagarförteckning!H:H)","v":0}]
[null,null,null,{"$f":"SUMIF(Deltagarförteckning!F:F,Register_deltag_organisationer!A480,Deltagarförteckning!H:H)","v":0}]
[null,null,null,{"$f":"SUMIF(Deltagarförteckning!F:F,Register_deltag_organisationer!A481,Deltagarförteckning!H:H)","v":0}]
[null,null,null,{"$f":"SUMIF(Deltagarförteckning!F:F,Register_deltag_organisationer!A482,Deltagarförteckning!H:H)","v":0}]
[null,null,null,{"$f":"SUMIF(Deltagarförteckning!F:F,Register_deltag_organisationer!A483,Deltagarförteckning!H:H)","v":0}]
[null,null,null,{"$f":"SUMIF(Deltagarförteckning!F:F,Register_deltag_organisationer!A484,Deltagarförteckning!H:H)","v":0}]
[null,null,null,{"$f":"SUMIF(Deltagarförteckning!F:F,Register_deltag_organisationer!A485,Deltagarförteckning!H:H)","v":0}]
[null,null,null,{"$f":"SUMIF(Deltagarförteckning!F:F,Register_deltag_organisationer!A486,Deltagarförteckning!H:H)","v":0}]
[null,null,null,{"$f":"SUMIF(Deltagarförteckning!F:F,Register_deltag_organisationer!A487,Deltagarförteckning!H:H)","v":0}]
[null,null,null,{"$f":"SUMIF(Deltagarförteckning!F:F,Register_deltag_organisationer!A488,Deltagarförteckning!H:H)","v":0}]
[null,null,null,{"$f":"SUMIF(Deltagarförteckning!F:F,Register_deltag_organisationer!A489,Deltagarförteckning!H:H)","v":0}]
[null,null,null,{"$f":"SUMIF(Deltagarförteckning!F:F,Register_deltag_organisationer!A490,Deltagarförteckning!H:H)","v":0}]
[null,null,null,{"$f":"SUMIF(Deltagarförteckning!F:F,Register_deltag_organisationer!A491,Deltagarförteckning!H:H)","v":0}]
[null,null,null,{"$f":"SUMIF(Deltagarförteckning!F:F,Register_deltag_organisationer!A492,Deltagarförteckning!H:H)","v":0}]
[null,null,null,{"$f":"SUMIF(Deltagarförteckning!F:F,Register_deltag_organisationer!A493,Deltagarförteckning!H:H)","v":0}]
[null,null,null,{"$f":"SUMIF(Deltagarförteckning!F:F,Register_deltag_organisationer!A494,Deltagarförteckning!H:H)","v":0}]
[null,null,null,{"$f":"SUMIF(Deltagarförteckning!F:F,Register_deltag_organisationer!A495,Deltagarförteckning!H:H)","v":0}]
[null,null,null,{"$f":"SUMIF(Deltagarförteckning!F:F,Register_deltag_organisationer!A496,Deltagarförteckning!H:H)","v":0}]
[null,null,null,{"$f":"SUMIF(Deltagarförteckning!F:F,Register_deltag_organisationer!A497,Deltagarförteckning!H:H)","v":0}]
[null,null,null,{"$f":"SUMIF(Deltagarförteckning!F:F,Register_deltag_organisationer!A498,Deltagarförteckning!H:H)","v":0}]
[null,null,null,{"$f":"SUMIF(Deltagarförteckning!F:F,Register_deltag_organisationer!A499,Deltagarförteckning!H:H)","v":0}]
[null,null,null,{"$f":"SUMIF(Deltagarförteckning!F:F,Register_deltag_organisationer!A500,Deltagarförteckning!H:H)","v":0}]
[null,null,null,{"$f":"SUMIF(Deltagarförteckning!F:F,Register_deltag_organisationer!A501,Deltagarförteckning!H:H)","v":0}]
[null,null,null,{"$f":"SUMIF(Deltagarförteckning!F:F,Register_deltag_organisationer!A502,Deltagarförteckning!H:H)","v":0}]
[null,null,null,{"$f":"SUMIF(Deltagarförteckning!F:F,Register_deltag_organisationer!A503,Deltagarförteckning!H:H)","v":0}]
[null,null,null,{"$f":"SUMIF(Deltagarförteckning!F:F,Register_deltag_organisationer!A504,Deltagarförteckning!H:H)","v":0}]
[null,null,null,{"$f":"SUMIF(Deltagarförteckning!F:F,Register_deltag_organisationer!A505,Deltagarförteckning!H:H)","v":0}]
[null,null,null,{"$f":"SUMIF(Deltagarförteckning!F:F,Register_deltag_organisationer!A506,Deltagarförteckning!H:H)","v":0}]
[null,null,null,{"$f":"SUMIF(Deltagarförteckning!F:F,Register_deltag_organisationer!A507,Deltagarförteckning!H:H)","v":0}]
[null,null,null,{"$f":"SUMIF(Deltagarförteckning!F:F,Register_deltag_organisationer!A508,Deltagarförteckning!H:H)","v":0}]
[null,null,null,{"$f":"SUMIF(Deltagarförteckning!F:F,Register_deltag_organisationer!A509,Deltagarförteckning!H:H)","v":0}]
[null,null,null,{"$f":"SUMIF(Deltagarförteckning!F:F,Register_deltag_organisationer!A510,Deltagarförteckning!H:H)","v":0}]
[null,null,null,{"$f":"SUMIF(Deltagarförteckning!F:F,Register_deltag_organisationer!A511,Deltagarförteckning!H:H)","v":0}]
[null,null,null,{"$f":"SUMIF(Deltagarförteckning!F:F,Register_deltag_organisationer!A512,Deltagarförteckning!H:H)","v":0}]
[null,null,null,{"$f":"SUMIF(Deltagarförteckning!F:F,Register_deltag_organisationer!A513,Deltagarförteckning!H:H)","v":0}]
[null,null,null,{"$f":"SUMIF(Deltagarförteckning!F:F,Register_deltag_organisationer!A514,Deltagarförteckning!H:H)","v":0}]
[null,null,null,{"$f":"SUMIF(Deltagarförteckning!F:F,Register_deltag_organisationer!A515,Deltagarförteckning!H:H)","v":0}]
[null,null,null,{"$f":"SUMIF(Deltagarförteckning!F:F,Register_deltag_organisationer!A516,Deltagarförteckning!H:H)","v":0}]
[null,null,null,{"$f":"SUMIF(Deltagarförteckning!F:F,Register_deltag_organisationer!A517,Deltagarförteckning!H:H)","v":0}]
[null,null,null,{"$f":"SUMIF(Deltagarförteckning!F:F,Register_deltag_organisationer!A518,Deltagarförteckning!H:H)","v":0}]
[null,null,null,{"$f":"SUMIF(Deltagarförteckning!F:F,Register_deltag_organisationer!A519,Deltagarförteckning!H:H)","v":0}]
[null,null,null,{"$f":"SUMIF(Deltagarförteckning!F:F,Register_deltag_organisationer!A520,Deltagarförteckning!H:H)","v":0}]
[null,null,null,{"$f":"SUMIF(Deltagarförteckning!F:F,Register_deltag_organisationer!A521,Deltagarförteckning!H:H)","v":0}]
[null,null,null,{"$f":"SUMIF(Deltagarförteckning!F:F,Register_deltag_organisationer!A522,Deltagarförteckning!H:H)","v":0}]
[null,null,null,{"$f":"SUMIF(Deltagarförteckning!F:F,Register_deltag_organisationer!A523,Deltagarförteckning!H:H)","v":0}]
[null,null,null,{"$f":"SUMIF(Deltagarförteckning!F:F,Register_deltag_organisationer!A524,Deltagarförteckning!H:H)","v":0}]
[null,null,null,{"$f":"SUMIF(Deltagarförteckning!F:F,Register_deltag_organisationer!A525,Deltagarförteckning!H:H)","v":0}]
[null,null,null,{"$f":"SUMIF(Deltagarförteckning!F:F,Register_deltag_organisationer!A526,Deltagarförteckning!H:H)","v":0}]

{"sheet":"Deltagarförteckning","index":2,"n_rows":42,"n_cols":22,"rows_kept":42,"cut":false,"hidden":false,"merged":[[0,0,0,7],[6,7,7,7],[6,0,7,0],[6,6,7,6],[2,1,2,5],[1,0,1,7],[6,22,7,22],[6,15,7,15],[5,13,5,15],[5,16,5,22],[6,13,7,13],[6,14,7,14],[6,17,7,17],[6,20,7,20],[6,21,7,21],[6,16,7,16],[6,18,7,18],[6,19,7,19],[3,18,4,18],[3,11,3,12],[6,8,7,8],[6,9,7,9],[5,1,5,2],[6,5,7,5],[3,1,3,5],[6,11,7,11],[5,11,5,12],[6,1,7,1],[6,3,7,3],[6,4,7,4],[6,2,7,2],[6,12,7,12],[3,17,4,17]]}
["Sammanställning av närvarotid för deltagare i socialfondsprojekt",null,null,null,null,null,null,null,null,null,null,"Deltagarredovisning Indikatorer - uppgifter kopieras till SCB-mallen"]
["Insatser inom programområde 1 (PO1) - Kompetensförsörjning"]
["Diarienummer",null,null,null,null,null,"Redovisningsmånad"]
["Projektnamn",null,null,null,null,null,"År",null,null,null,null,"Läs instruktion för kopiering",null,null,null,null,null,"Läs instruktion för avslutsorsak","Läs instruktion för kvalifikation"]
[]
[null,null,null,null,null,null,null,null,null,null,null,"Besvaras alltid",null,"Besvaras vid första rapporteringen för delt.",null,null,"Besvaras när deltagaren slutar i projektet"]
["Namn","Personnummer  ÅÅÅÅMMDD-NNNN","Ålder","Kön","Räkna antal kön närvaro","Organisationsnamn","Organisationsnummer                      NNNNNN-NNNN","Aktiviteter/kompetensutvecklings-timmar per deltagare och månad","Formler unika","Unika företag",null,"Deltagarens personnummer","Antal timmar under månaden","Startdatum      ","Deltagaren från målgruppen","Deltagaren anvisad från","Avsluts-datum  ","Avsluts-orsak","Har deltagaren erhållit någon formell kvalifikation, certifiering eller motsvarande genom sitt projektdeltagande","Deltagarens status vid avslut","Anställnings-villkor","Anställningens omfattning"]
[]
[null,null,{"$f":"IFERROR(DATEDIF(CONCATENATE(MID(B9,3,2),\"-\",MID(B9,5,2),\"-\",MID(B9,7,2)),(Data!$E$21),\"Y\"),\"\")","v":""},{"$f":"IF(ISEVEN(MID(B9,12,1)),\"K\",\"M\")","v":{"$error":"#VALUE!"}},{"$f":"IF(M9>0,D9,\"\")","v":""},null,{"$f":"IFERROR(VLOOKUP(F9,Register_deltag_organisationer!A$6:B$502,2,FALSE),\"-\")","v":"-"},null,{"$f":"IF(COUNTIF($F$9:$F9,F9)>1,0,1)","v":1},{"$f":"IF(F9>1,I9,\"\")","v":""},null,{"$f":"SUBSTITUTE(B9,\"-\",\"\")","v":""},{"$f":"SUM(H9)","v":0},null,{"$f":"IF(B9>1,1,\"\")","v":""}]
[null,null,{"$f":"IFERROR(DATEDIF(CONCATENATE(MID(B10,3,2),\"-\",MID(B10,5,2),\"-\",MID(B10,7,2)),(Data!$E$21),\"Y\"),\"\")","v":""},{"$f":"IF(ISEVEN(MID(B10,12,1)),\"K\",\"M\")","v":{"$error":"#VALUE!"}},"",null,{"$f":"IFERROR(VLOOKUP(F10,Register_deltag_organisationer!A$6:B$502,2,FALSE),\"-\")","v":"-"},null,{"$f":"IF(COUNTIF($F$9:$F10,F10)>1,0,1)","v":1},{"$f":"IF(F10>1,I10,\"\")","v":""},null,{"$f":"SUBSTITUTE(B10,\"-\",\"\")","v":""},{"$f":"SUM(H10)","v":0},null,{"$f":"IF(B10>1,1,\"\")","v":""}]
[null,null,{"$f":"IFERROR(DATEDIF(CONCATENATE(MID(B11,3,2),\"-\",MID(B11,5,2),\"-\",MID(B11,7,2)),(Data!$E$21),\"Y\"),\"\")","v":""},{"$error":"#VALUE!"},"",null,{"$f":"IFERROR(VLOOKUP(F11,Register_deltag_organisationer!A$6:B$502,2,FALSE),\"-\")","v":"-"},null,{"$f":"IF(COUNTIF($F$9:$F11,F11)>1,0,1)","v":1},"",null,"",{"$f":"SUM(H11)","v":0},null,""]
[null,null,{"$f":"IFERROR(DATEDIF(CONCATENATE(MID(B12,3,2),\"-\",MID(B12,5,2),\"-\",MID(B12,7,2)),(Data!$E$21),\"Y\"),\"\")","v":""},{"$error":"#VALUE!"},"",null,{"$f":"IFERROR(VLOOKUP(F12,Register_deltag_organisationer!A$6:B$502,2,FALSE),\"-\")","v":"-"},null,{"$f":"IF(COUNTIF($F$9:$F12,F12)>1,0,1)","v":1},"",null,"",0,null,""]
[null,null,{"$f":"IFERROR(DATEDIF(CONCATENATE(MID(B13,3,2),\"-\",MID(B13,5,2),\"-\",MID(B13,7,2)),(Data!$E$21),\"Y\"),\"\")","v":""},{"$error":"#VALUE!"},"",null,{"$f":"IFERROR(VLOOKUP(F13,Register_deltag_organisationer!A$6:B$502,2,FALSE),\"-\")","v":"-"},null,{"$f":"IF(COUNTIF($F$9:$F13,F13)>1,0,1)","v":1},"",null,"",0,null,""]
[null,null,{"$f":"IFERROR(DATEDIF(CONCATENATE(MID(B14,3,2),\"-\",MID(B14,5,2),\"-\",MID(B14,7,2)),(Data!$E$21),\"Y\"),\"\")","v":""},{"$error":"#VALUE!"},"",null,{"$f":"IFERROR(VLOOKUP(F14,Register_deltag_organisationer!A$6:B$502,2,FALSE),\"-\")","v":"-"},null,{"$f":"IF(COUNTIF($F$9:$F14,F14)>1,0,1)","v":1},"",null,"",0,null,""]
[null,null,{"$f":"IFERROR(DATEDIF(CONCATENATE(MID(B15,3,2),\"-\",MID(B15,5,2),\"-\",MID(B15,7,2)),(Data!$E$21),\"Y\"),\"\")","v":""},{"$error":"#VALUE!"},"",null,{"$f":"IFERROR(VLOOKUP(F15,Register_deltag_organisationer!A$6:B$502,2,FALSE),\"-\")","v":"-"},null,{"$f":"IF(COUNTIF($F$9:$F15,F15)>1,0,1)","v":1},"",null,"",0,null,""]
[null,null,{"$f":"IFERROR(DATEDIF(CONCATENATE(MID(B16,3,2),\"-\",MID(B16,5,2),\"-\",MID(B16,7,2)),(Data!$E$21),\"Y\"),\"\")","v":""},{"$error":"#VALUE!"},"",null,{"$f":"IFERROR(VLOOKUP(F16,Register_deltag_organisationer!A$6:B$502,2,FALSE),\"-\")","v":"-"},null,{"$f":"IF(COUNTIF($F$9:$F16,F16)>1,0,1)","v":1},"",null,"",0,null,""]
[null,null,{"$f":"IFERROR(DATEDIF(CONCATENATE(MID(B17,3,2),\"-\",MID(B17,5,2),\"-\",MID(B17,7,2)),(Data!$E$21),\"Y\"),\"\")","v":""},{"$error":"#VALUE!"},"",null,{"$f":"IFERROR(VLOOKUP(F17,Register_deltag_organisationer!A$6:B$502,2,FALSE),\"-\")","v":"-"},null,{"$f":"IF(COUNTIF($F$9:$F17,F17)>1,0,1)","v":1},"",null,"",0,null,""]
[null,null,{"$f":"IFERROR(DATEDIF(CONCATENATE(MID(B18,3,2),\"-\",MID(B18,5,2),\"-\",MID(B18,7,2)),(Data!$E$21),\"Y\"),\"\")","v":""},{"$error":"#VALUE!"},"",null,{"$f":"IFERROR(VLOOKUP(F18,Register_deltag_organisationer!A$6:B$502,2,FALSE),\"-\")","v":"-"},null,{"$f":"IF(COUNTIF($F$9:$F18,F18)>1,0,1)","v":1},"",null,"",0,null,""]
[null,null,{"$f":"IFERROR(DATEDIF(CONCATENATE(MID(B19,3,2),\"-\",MID(B19,5,2),\"-\",MID(B19,7,2)),(Data!$E$21),\"Y\"),\"\")","v":""},{"$error":"#VALUE!"},"",null,{"$f":"IFERROR(VLOOKUP(F19,Register_deltag_organisationer!A$6:B$502,2,FALSE),\"-\")","v":"-"},null,{"$f":"IF(COUNTIF($F$9:$F19,F19)>1,0,1)","v":1},"",null,"",0,null,""]
[null,null,{"$f":"IFERROR(DATEDIF(CONCATENATE(MID(B20,3,2),\"-\",MID(B20,5,2),\"-\",MID(B20,7,2)),(Data!$E$21),\"Y\"),\"\")","v":""},{"$error":"#VALUE!"},"",null,{"$f":"IFERROR(VLOOKUP(F20,Register_deltag_organisationer!A$6:B$502,2,FALSE),\"-\")","v":"-"},null,{"$f":"IF(COUNTIF($F$9:$F20,F20)>1,0,1)","v":1},"",null,"",0,null,""]
[null,null,{"$f":"IFERROR(DATEDIF(CONCATENATE(MID(B21,3,2),\"-\",MID(B21,5,2),\"-\",MID(B21,7,2)),(Data!$E$21),\"Y\"),\"\")","v":""},{"$error":"#VALUE!"},"",null,{"$f":"IFERROR(VLOOKUP(F21,Register_deltag_organisationer!A$6:B$502,2,FALSE),\"-\")","v":"-"},null,{"$f":"IF(COUNTIF($F$9:$F21,F21)>1,0,1)","v":1},"",null,"",0,null,""]
[null,null,{"$f":"IFERROR(DATEDIF(CONCATENATE(MID(B22,3,2),\"-\",MID(B22,5,2),\"-\",MID(B22,7,2)),(Data!$E$21),\"Y\"),\"\")","v":""},{"$error":"#VALUE!"},"",null,{"$f":"IFERROR(VLOOKUP(F22,Register_deltag_organisationer!A$6:B$502,2,FALSE),\"-\")","v":"-"},null,{"$f":"IF(COUNTIF($F$9:$F22,F22)>1,0,1)","v":1},"",null,"",0,null,""]
[null,null,{"$f":"IFERROR(DATEDIF(CONCATENATE(MID(B23,3,2),\"-\",MID(B23,5,2),\"-\",MID(B23,7,2)),(Data!$E$21),\"Y\"),\"\")","v":""},{"$error":"#VALUE!"},"",null,{"$f":"IFERROR(VLOOKUP(F23,Register_deltag_organisationer!A$6:B$502,2,FALSE),\"-\")","v":"-"},null,{"$f":"IF(COUNTIF($F$9:$F23,F23)>1,0,1)","v":1},"",null,"",0,null,""]
[null,null,{"$f":"IFERROR(DATEDIF(CONCATENATE(MID(B24,3,2),\"-\",MID(B24,5,2),\"-\",MID(B24,7,2)),(Data!$E$21),\"Y\"),\"\")","v":""},{"$error":"#VALUE!"},"",null,{"$f":"IFERROR(VLOOKUP(F24,Register_deltag_organisationer!A$6:B$502,2,FALSE),\"-\")","v":"-"},null,{"$f":"IF(COUNTIF($F$9:$F24,F24)>1,0,1)","v":1},"",null,"",0,null,""]
[null,null,{"$f":"IFERROR(DATEDIF(CONCATENATE(MID(B25,3,2),\"-\",MID(B25,5,2),\"-\",MID(B25,7,2)),(Data!$E$21),\"Y\"),\"\")","v":""},{"$error":"#VALUE!"},"",null,{"$f":"IFERROR(VLOOKUP(F25,Register_deltag_organisationer!A$6:B$502,2,FALSE),\"-\")","v":"-"},null,{"$f":"IF(COUNTIF($F$9:$F25,F25)>1,0,1)","v":1},"",null,"",0,null,""]
[null,null,{"$f":"IFERROR(DATEDIF(CONCATENATE(MID(B26,3,2),\"-\",MID(B26,5,2),\"-\",MID(B26,7,2)),(Data!$E$21),\"Y\"),\"\")","v":""},{"$error":"#VALUE!"},"",null,{"$f":"IFERROR(VLOOKUP(F26,Register_deltag_organisationer!A$6:B$502,2,FALSE),\"-\")","v":"-"},null,{"$f":"IF(COUNTIF($F$9:$F26,F26)>1,0,1)","v":1},"",null,"",0,null,""]
[null,null,{"$f":"IFERROR(DATEDIF(CONCATENATE(MID(B27,3,2),\"-\",MID(B27,5,2),\"-\",MID(B27,7,2)),(Data!$E$21),\"Y\"),\"\")","v":""},{"$error":"#VALUE!"},"",null,{"$f":"IFERROR(VLOOKUP(F27,Register_deltag_organisationer!A$6:B$502,2,FALSE),\"-\")","v":"-"},null,{"$f":"IF(COUNTIF($F$9:$F27,F27)>1,0,1)","v":1},"",null,"",0,null,""]
[null,null,{"$f":"IFERROR(DATEDIF(CONCATENATE(MID(B28,3,2),\"-\",MID(B28,5,2),\"-\",MID(B28,7,2)),(Data!$E$21),\"Y\"),\"\")","v":""},{"$error":"#VALUE!"},"",null,{"$f":"IFERROR(VLOOKUP(F28,Register_deltag_organisationer!A$6:B$502,2,FALSE),\"-\")","v":"-"},null,{"$f":"IF(COUNTIF($F$9:$F28,F28)>1,0,1)","v":1},"",null,"",0,null,""]
[null,null,{"$f":"IFERROR(DATEDIF(CONCATENATE(MID(B29,3,2),\"-\",MID(B29,5,2),\"-\",MID(B29,7,2)),(Data!$E$21),\"Y\"),\"\")","v":""},{"$error":"#VALUE!"},"",null,{"$f":"IFERROR(VLOOKUP(F29,Register_deltag_organisationer!A$6:B$502,2,FALSE),\"-\")","v":"-"},null,{"$f":"IF(COUNTIF($F$9:$F29,F29)>1,0,1)","v":1},"",null,"",0,null,""]
[null,null,{"$f":"IFERROR(DATEDIF(CONCATENATE(MID(B30,3,2),\"-\",MID(B30,5,2),\"-\",MID(B30,7,2)),(Data!$E$21),\"Y\"),\"\")","v":""},{"$error":"#VALUE!"},"",null,{"$f":"IFERROR(VLOOKUP(F30,Register_deltag_organisationer!A$6:B$502,2,FALSE),\"-\")","v":"-"},null,{"$f":"IF(COUNTIF($F$9:$F30,F30)>1,0,1)","v":1},"",null,"",0,null,""]
[null,null,{"$f":"IFERROR(DATEDIF(CONCATENATE(MID(B31,3,2),\"-\",MID(B31,5,2),\"-\",MID(B31,7,2)),(Data!$E$21),\"Y\"),\"\")","v":""},{"$error":"#VALUE!"},"",null,{"$f":"IFERROR(VLOOKUP(F31,Register_deltag_organisationer!A$6:B$502,2,FALSE),\"-\")","v":"-"},null,{"$f":"IF(COUNTIF($F$9:$F31,F31)>1,0,1)","v":1},"",null,"",0,null,""]
[null,null,{"$f":"IFERROR(DATEDIF(CONCATENATE(MID(B32,3,2),\"-\",MID(B32,5,2),\"-\",MID(B32,7,2)),(Data!$E$21),\"Y\"),\"\")","v":""},{"$error":"#VALUE!"},"",null,{"$f":"IFERROR(VLOOKUP(F32,Register_deltag_organisationer!A$6:B$502,2,FALSE),\"-\")","v":"-"},null,{"$f":"IF(COUNTIF($F$9:$F32,F32)>1,0,1)","v":1},"",null,"",0,null,""]
[null,null,{"$f":"IFERROR(DATEDIF(CONCATENATE(MID(B33,3,2),\"-\",MID(B33,5,2),\"-\",MID(B33,7,2)),(Data!$E$21),\"Y\"),\"\")","v":""},{"$error":"#VALUE!"},"",null,{"$f":"IFERROR(VLOOKUP(F33,Register_deltag_organisationer!A$6:B$502,2,FALSE),\"-\")","v":"-"},null,{"$f":"IF(COUNTIF($F$9:$F33,F33)>1,0,1)","v":1},"",null,"",0,null,""]
[null,null,{"$f":"IFERROR(DATEDIF(CONCATENATE(MID(B34,3,2),\"-\",MID(B34,5,2),\"-\",MID(B34,7,2)),(Data!$E$21),\"Y\"),\"\")","v":""},{"$error":"#VALUE!"},"",null,{"$f":"IFERROR(VLOOKUP(F34,Register_deltag_organisationer!A$6:B$502,2,FALSE),\"-\")","v":"-"},null,{"$f":"IF(COUNTIF($F$9:$F34,F34)>1,0,1)","v":1},"",null,"",0,null,""]
[null,null,{"$f":"IFERROR(DATEDIF(CONCATENATE(MID(B35,3,2),\"-\",MID(B35,5,2),\"-\",MID(B35,7,2)),(Data!$E$21),\"Y\"),\"\")","v":""},{"$error":"#VALUE!"},"",null,{"$f":"IFERROR(VLOOKUP(F35,Register_deltag_organisationer!A$6:B$502,2,FALSE),\"-\")","v":"-"},null,{"$f":"IF(COUNTIF($F$9:$F35,F35)>1,0,1)","v":1},"",null,"",0,null,""]
[null,null,{"$f":"IFERROR(DATEDIF(CONCATENATE(MID(B36,3,2),\"-\",MID(B36,5,2),\"-\",MID(B36,7,2)),(Data!$E$21),\"Y\"),\"\")","v":""},{"$error":"#VALUE!"},"",null,{"$f":"IFERROR(VLOOKUP(F36,Register_deltag_organisationer!A$6:B$502,2,FALSE),\"-\")","v":"-"},null,{"$f":"IF(COUNTIF($F$9:$F36,F36)>1,0,1)","v":1},"",null,"",0,null,""]
[null,null,{"$f":"IFERROR(DATEDIF(CONCATENATE(MID(B37,3,2),\"-\",MID(B37,5,2),\"-\",MID(B37,7,2)),(Data!$E$21),\"Y\"),\"\")","v":""},{"$error":"#VALUE!"},"",null,{"$f":"IFERROR(VLOOKUP(F37,Register_deltag_organisationer!A$6:B$502,2,FALSE),\"-\")","v":"-"},null,{"$f":"IF(COUNTIF($F$9:$F37,F37)>1,0,1)","v":1},"",null,"",0,null,""]
[null,null,{"$f":"IFERROR(DATEDIF(CONCATENATE(MID(B38,3,2),\"-\",MID(B38,5,2),\"-\",MID(B38,7,2)),(Data!$E$21),\"Y\"),\"\")","v":""},{"$error":"#VALUE!"},"",null,{"$f":"IFERROR(VLOOKUP(F38,Register_deltag_organisationer!A$6:B$502,2,FALSE),\"-\")","v":"-"},null,{"$f":"IF(COUNTIF($F$9:$F38,F38)>1,0,1)","v":1},"",null,"",0,null,""]
[null,null,{"$f":"IFERROR(DATEDIF(CONCATENATE(MID(B39,3,2),\"-\",MID(B39,5,2),\"-\",MID(B39,7,2)),(Data!$E$21),\"Y\"),\"\")","v":""},{"$error":"#VALUE!"},"",null,{"$f":"IFERROR(VLOOKUP(F39,Register_deltag_organisationer!A$6:B$502,2,FALSE),\"-\")","v":"-"},null,{"$f":"IF(COUNTIF($F$9:$F39,F39)>1,0,1)","v":1},"",null,"",0,null,""]
[null,null,{"$f":"IFERROR(DATEDIF(CONCATENATE(MID(B40,3,2),\"-\",MID(B40,5,2),\"-\",MID(B40,7,2)),(Data!$E$21),\"Y\"),\"\")","v":""},{"$error":"#VALUE!"},"",null,{"$f":"IFERROR(VLOOKUP(F40,Register_deltag_organisationer!A$6:B$502,2,FALSE),\"-\")","v":"-"},null,{"$f":"IF(COUNTIF($F$9:$F40,F40)>1,0,1)","v":1},"",null,"",0,null,""]
["sista",null,null,null,null,null,null,{"$f":"SUM(H9:H40)","v":0},null,{"$f":"SUM(J9:J40)","v":0}]
[null,null,null,null,null,null,null,null,null,null," "]

{"sheet":"Intyg för närvarotid","index":3,"n_rows":42,"n_cols":4,"rows_kept":42,"cut":false,"hidden":false,"merged":[[31,0,31,1],[30,0,30,1],[28,0,28,1],[27,0,27,1],[26,0,26,1],[29,0,29,1],[25,0,25,1],[41,0,43,3],[33,0,33,3],[19,0,19,3],[13,0,13,1],[16,0,16,1],[37,0,37,1],[38,0,38,1],[18,0,18,1],[20,0,20,1],[36,2,36,3],[37,2,37,3],[17,0,17,1],[21,0,21,1],[22,0,22,1],[13,2,13,3],[12,2,12,3],[23,0,23,1],[0,0,1,4],[11,0,11,3],[2,0,2,4]]}
["Intyg för närvarotid för deltagare i socialfondsprojekt"]
[]
["Insatser inom programområde 1 (PO1) - Kompetensförsörjning"]
[]
[]
[]
[]
["Diarienummer",{"$f":"Deltagarförteckning!B3:E3","v":0},"Redovisningsmånad",{"$f":"Deltagarförteckning!H3","v":0}]
["Projektnamn",{"$f":"Deltagarförteckning!B4:E4","v":0},"År",{"$f":"Deltagarförteckning!H4","v":0}]
[]
[]
["Timmar som utgör grund för medfinansiering. Registreras i ansökan om utbetalning under medfinansiering i annat än pengar under posten Personal."]
["Timlönegrupp ","1"," Totalt antal närvarotimmar under månaden"]
["Medfinansiering, närvarotid i aktiviteter/kompetensutvecklingsinsatser",null,{"$f":"Deltagarförteckning!H41","v":0}]
[]
[]
["Totalt antal deltagare under månaden",null,{"$f":"COUNTIF(Deltagarförteckning!M9:M400,\">0\")","v":0}]
["Totalt antal deltagande organisationer under månaden",null,{"$f":"Deltagarförteckning!J41","v":0}]
["Totalt antal utbildningstimmar under månaden",null,{"$f":"SUM(Deltagarförteckning!H41)","v":0}]
[]
["Antal timmar i snitt per deltagare ",null,{"$f":"IFERROR(C19/C17,\"\")","v":""}]
["Antal timmar i snitt per organisation",null,{"$f":"IFERROR(C19/C18,\"\")","v":""}]
["Antal kvinnor",null,{"$f":"COUNTIF(Deltagarförteckning!E9:E500,\"=K\")","v":0}]
["Antal män",null,{"$f":"COUNTIF(Deltagarförteckning!E9:E500,\"=M\")","v":0}]
["Nedanstående timmar ska rapporteras i ansökan om utbetalning:"]
["Privat aktör ",null,{"$f":"IF(Data!J1=0,\"\",Data!J1)","v":""}]
["Kommun",null,{"$f":"IF(Data!J2=0,\"\",Data!J2)","v":""}]
["Landstingskommunal",null,{"$f":"IF(Data!J3=0,\"\",Data!J3)","v":""}]
["Annan statlig aktör",null,{"$f":"IF(Data!J4=0,\"\",Data!J4)","v":""}]
["Övrig offentlig icke statlig aktör",null,{"$f":"IF(Data!J5=0,\"\",Data!J5)","v":""}]
["Arbetsförmedlingen",null,{"$f":"IF(Data!J6=0,\"\",Data!J6)","v":""}]
["Försäkringskassan",null,{"$f":"IF(Data!J7=0,\"\",Data!J7)","v":""}]
[{"$f":"IF(Data!J10=0,\"\",\"Typ av organisation saknas på en eller flera aktörer se flik Register_deltag_organisationer\")","v":""}]
["Härmed intygas att redovisade timmar motsvarar den faktiska tiden för deltagare i projektet under månaden."]
[]
[]
["_______________________________________",null,"     "]
["Underskrift ",null,"Namnförtydligande"]
["Behörig företrädare för projektet"]
[]
[]
["Information till projektägaren: Blanketten skickas till Svenska ESF-rådet i samband med ansökan om utbetalning av stöd för ovanstående redovisningsperiod. Övrig dokumentation (närvarotid för deltagare, deltagarförteckning och register över deltagande organisation/er) sparas hos projektägaren."]

{"sheet":"Instruktion","index":4,"n_rows":16,"n_cols":1,"rows_kept":16,"cut":false,"hidden":false,"merged":[[14,0,14,13],[15,0,15,13],[5,0,5,13],[11,0,11,13],[12,0,12,13],[13,0,13,13],[6,0,6,13],[7,0,7,13],[8,0,8,13],[9,0,9,13],[10,0,10,13],[0,0,0,13],[1,0,1,13],[2,0,2,13],[3,0,3,13],[4,0,4,13]]}
["Instruktion"]
[" för sammanställning av närvarotid för deltagare i socialfondsprojekt \nInsatser inom programområde 1 (PO1) - Kompetensförsörjning"]
["Deltagarna i socialfondsprojekt ska redovisa sin närvarotid. Genom blanketten Närvarorapport för deltagare i socialfondsprojekt skapas underlag för att sammanställa uppgifter som Svenska ESF-rådet ska ha in som underlag vid ansökan om utbetalning.\nDessa uppgifter fungerar även som underlag för rapportering till Statistiska centralbyrån (SCB). SCB samlar in och sammanställer information om deltagare i socialfondsprojekt för rapportering till EU-kommissionen. För att underlätta rapporteringen fungerar den här blanketten både för rapporteringen till Svenska ESF-rådet samt till SCB. Dokumentet bygger på excel och består av fyra flikar: Register deltagande organisationer, Deltagarförteckning, Intyg för närvarotid och Instruktion."]
["Så här fyller ni i blanketten:\n"]
["Flik Register deltagande organisationer\n"]
["I registret fyller ni i de organisationer i projektet som kompetensutvecklar sin personal. Projektets diarienummer och namn anger du i fliken Deltagarförteckning. Registret underlättar ifyllandet av deltagarförteckningen eftersom uppgifterna där hämtas från registret."]
["Flik Deltagarförteckning"]
["Börja med att fylla i projektets diarienummer och namn. Uppgifterna förs automatiskt över till fliken Register deltagande organisationer. \nAnge aktuell månad samt år som rapporteringen avser. \nAnge deltagarnas namn och personnummer. Ålder räknas ut automatiskt och fungerar som informationsfält.\nUppgifter om organisationsnamn och organisationsnummer hämtas från registret deltagande organisationer genom att ni ställer er i rutan och väljer i rullisten. Se flik Register deltagande organisationer.\nAnge antal närvarotimmar för deltagaren enligt underlag för närvarorapport som deltagaren fyllt i och som godkänts av överordnad chef."]
["Flik Intyg för närvarotid"]
["En sammanställning över de uppgifter ni uppger i deltagarförteckningen förs automatiskt över till intyget för närvarotid. Intyget skrivs ut och undertecknas samt skickas in till Svenska ESF-rådet i samband med ansökan om utbetalning. Observera att deltagarförteckningen och närvarorapporterna för deltagarna ska sparas hos er i det fall Svenska ESF-rådet eller ett revisionsorgan behöver kontrollera inlämnade uppgifter. \nUppgifterna från fliken Intyg närvarotid är de som ni sedan överför till ansökan om utbetalning när ni redovisar i Projektrummet. "]
["Deltagarredovisning Indikatorer – uppgifter kopieras till SCB-mallen"]
["Uppgifter som redan är ifyllda i sammanställningen gällande deltagarens personnummer och antal närvarotimmar under månaden samt inom vilket programområde deltagaren är rapporterad förs automatiskt över till underlaget för SCB-rapporteringen. Uppgifter gällande start och avslut fyller ni i vid aktuell tidpunkt. \nUppgifterna speglar de uppgifter som ni måste rapportera till SCB. Följ instruktionen för kopiering som ni finner i överkant i dokumentet och kopiera till SCB-rapporteringen som ni har fått inloggningsuppgifter till."]
["Vid första rapporteringen"]
["Uppge datum då deltagaren skrivs in i projektet.\nRutan Deltagaren anvisad från gäller inte för rapportering inom programområde 1, bortse från den."]
["När deltagaren slutar i projektet"]
["Ställ er i respektive ruta i dokumentet så kommer en hjälpruta fram som stöd för vad som ska fyllas i. Uppge deltagarens e-postadress och telefonnummer. \nDet finns en kort instruktion i ovankant vad som avses med en formell kvalifikation och avslutsorsak, klicka på rutan Instruktion för kvalifikation eller instruktion för avslutsorsak för mer information.\n \n"]